Department Family,Entity,Date,Expense Type,Expense Area,Supplier,Transaction Number,Amount,Description
Ministry of Justice,MoJ HQ,20/Feb/2014 ,265000-IT & Telecommunications,NZ900-Finance & Corporate Services,ACTICA CONSULTING LTD,1123761,"46,750.00","Review Documentation,Conduct full and half day workshops,Produce test assurance report,Produce project based Technical Evaluation Reports, Produce assurance report for the mobilisation of sites & Produce Assurance Plan"
Ministry of Justice,MoJ HQ,20/Feb/2014 ,265000-IT & Telecommunications,NZ900-Finance & Corporate Services,ACTICA CONSULTING LTD,1123761,"9,350.00","Review Documentation,Conduct full and half day workshops,Produce test assurance report,Produce project based Technical Evaluation Reports, Produce assurance report for the mobilisation of sites & Produce Assurance Plan"
Ministry of Justice,MoJ HQ,24/Feb/2014 ,512000-Intangible GBV - Additions,NZ900-Finance & Corporate Services,ACTICA CONSULTING LTD,1124077,"267,892.85",Enterprise + Security architecture and assurance work packages inc RMADS and Business Process Modelling
Ministry of Justice,MoJ HQ,24/Feb/2014 ,512000-Intangible GBV - Additions,NZ900-Finance & Corporate Services,ACTICA CONSULTING LTD,1124077,"53,578.57",Enterprise + Security architecture and assurance work packages inc RMADS and Business Process Modelling
Ministry of Justice,MoJ HQ,27/Feb/2014 ,223000-Other Expenditure,NZ401-Finance Group Feeder,ALLEN LANE CONSULTANCY LTD,1124305,"1,221,330.00",Managed Accounting Service consultancy costs
Ministry of Justice,MoJ HQ,27/Feb/2014 ,223000-Other Expenditure,NZ401-Finance Group Feeder,ALLEN LANE CONSULTANCY LTD,1124305,"244,266.00",Managed Accounting Service consultancy costs
Ministry of Justice,MoJ HQ,13/Feb/2014 ,223000-Other Expenditure,QY300-Fleet Car Mgmt,ALLSTAR BUSINESS SOLUTIONS LTD,1123107,"24,784.14",MoJ Lease Car Fuel Costs Full Year 13-14
Ministry of Justice,MoJ HQ,13/Feb/2014 ,223000-Other Expenditure,QY300-Fleet Car Mgmt,ALLSTAR BUSINESS SOLUTIONS LTD,1123107,"4,956.83",MoJ Lease Car Fuel Costs Full Year 13-14
Ministry of Justice,MoJ HQ,13/Feb/2014 ,223000-Other Expenditure,QY300-Fleet Car Mgmt,ALLSTAR BUSINESS SOLUTIONS LTD,1123107,-0.49,MoJ Lease Car Fuel Costs Full Year 13-14
Ministry of Justice,MoJ HQ,13/Feb/2014 ,223000-Other Expenditure,QY300-Fleet Car Mgmt,ALPHABET (GB) LTD,1123108,"21,730.10",MoJ Lease Vehicle Contract Full Year 13-14
Ministry of Justice,MoJ HQ,13/Feb/2014 ,223000-Other Expenditure,QY300-Fleet Car Mgmt,ALPHABET (GB) LTD,1123108,"4,346.02",MoJ Lease Vehicle Contract Full Year 13-14
Ministry of Justice,MoJ HQ,13/Feb/2014 ,223000-Other Expenditure,QY300-Fleet Car Mgmt,ALPHABET (GB) LTD,1123108,0.06,MoJ Lease Vehicle Contract Full Year 13-14
Ministry of Justice,MoJ HQ,03/Feb/2014 ,223000-Other Expenditure,QY300-Fleet Car Mgmt,ARVAL UK LTD,1122316,"21,005.73",MoJ Lease Car Service & Maintenance FY 13-14
Ministry of Justice,MoJ HQ,03/Feb/2014 ,223000-Other Expenditure,QY300-Fleet Car Mgmt,ARVAL UK LTD,1122316,"4,201.15",MoJ Lease Car Service & Maintenance FY 13-14
Ministry of Justice,MoJ HQ,03/Feb/2014 ,223000-Other Expenditure,QY300-Fleet Car Mgmt,ARVAL UK LTD,1122316,0.07,MoJ Lease Car Service & Maintenance FY 13-14
Ministry of Justice,MoJ HQ,03/Feb/2014 ,265000-IT & Telecommunications,LZ600-Transforming Justice,ATOS IT SERVICES UK LTD,1122319,200.58,IT peripherals/ individual ordered software and equipment
Ministry of Justice,MoJ HQ,03/Feb/2014 ,265000-IT & Telecommunications,NZ406-Strategic Estates Feeder,ATOS IT SERVICES UK LTD,1122319,297.12,IT peripherals/ individual ordered software and equipment
Ministry of Justice,MoJ HQ,03/Feb/2014 ,265000-IT & Telecommunications,NZ406-Strategic Estates Feeder,ATOS IT SERVICES UK LTD,1122319,11.62,IT peripherals/ individual ordered software and equipment
Ministry of Justice,MoJ HQ,03/Feb/2014 ,265000-IT & Telecommunications,NZ406-Strategic Estates Feeder,ATOS IT SERVICES UK LTD,1122319,150.00,IT peripherals/ individual ordered software and equipment
Ministry of Justice,MoJ HQ,03/Feb/2014 ,265000-IT & Telecommunications,NZ406-Strategic Estates Feeder,ATOS IT SERVICES UK LTD,1122319,264.00,IT peripherals/ individual ordered software and equipment
Ministry of Justice,MoJ HQ,03/Feb/2014 ,265000-IT & Telecommunications,NZ406-Strategic Estates Feeder,ATOS IT SERVICES UK LTD,1122319,164.00,IT peripherals/ individual ordered software and equipment
Ministry of Justice,MoJ HQ,03/Feb/2014 ,265000-IT & Telecommunications,NZ406-Strategic Estates Feeder,ATOS IT SERVICES UK LTD,1122319,17.16,IT peripherals/ individual ordered software and equipment
Ministry of Justice,MoJ HQ,03/Feb/2014 ,265000-IT & Telecommunications,NZ406-Strategic Estates Feeder,ATOS IT SERVICES UK LTD,1122319,46.00,IT peripherals/ individual ordered software and equipment
Ministry of Justice,MoJ HQ,03/Feb/2014 ,265000-IT & Telecommunications,NZ406-Strategic Estates Feeder,ATOS IT SERVICES UK LTD,1122319,46.00,IT peripherals/ individual ordered software and equipment
Ministry of Justice,MoJ HQ,03/Feb/2014 ,265000-IT & Telecommunications,NZ406-Strategic Estates Feeder,ATOS IT SERVICES UK LTD,1122319,50.90,IT peripherals/ individual ordered software and equipment
Ministry of Justice,MoJ HQ,03/Feb/2014 ,265000-IT & Telecommunications,NZ406-Strategic Estates Feeder,ATOS IT SERVICES UK LTD,1122319,258.33,IT peripherals/ individual ordered software and equipment
Ministry of Justice,MoJ HQ,03/Feb/2014 ,265000-IT & Telecommunications,NZ406-Strategic Estates Feeder,ATOS IT SERVICES UK LTD,1122319,33.33,IT peripherals/ individual ordered software and equipment
Ministry of Justice,MoJ HQ,03/Feb/2014 ,265000-IT & Telecommunications,NZ406-Strategic Estates Feeder,ATOS IT SERVICES UK LTD,1122319,76.90,IT peripherals/ individual ordered software and equipment
Ministry of Justice,MoJ HQ,03/Feb/2014 ,265000-IT & Telecommunications,NZ406-Strategic Estates Feeder,ATOS IT SERVICES UK LTD,1122319,17.16,IT peripherals/ individual ordered software and equipment
Ministry of Justice,MoJ HQ,03/Feb/2014 ,265000-IT & Telecommunications,NZ406-Strategic Estates Feeder,ATOS IT SERVICES UK LTD,1122319,264.00,IT peripherals/ individual ordered software and equipment
Ministry of Justice,MoJ HQ,03/Feb/2014 ,265000-IT & Telecommunications,NZ406-Strategic Estates Feeder,ATOS IT SERVICES UK LTD,1122319,17.16,IT peripherals/ individual ordered software and equipment
Ministry of Justice,MoJ HQ,03/Feb/2014 ,265000-IT & Telecommunications,NZ406-Strategic Estates Feeder,ATOS IT SERVICES UK LTD,1122319,164.00,IT peripherals/ individual ordered software and equipment
Ministry of Justice,MoJ HQ,03/Feb/2014 ,265000-IT & Telecommunications,NZ406-Strategic Estates Feeder,ATOS IT SERVICES UK LTD,1122319,164.00,IT peripherals/ individual ordered software and equipment
Ministry of Justice,MoJ HQ,03/Feb/2014 ,265000-IT & Telecommunications,NZ406-Strategic Estates Feeder,ATOS IT SERVICES UK LTD,1122319,76.90,IT peripherals/ individual ordered software and equipment
Ministry of Justice,MoJ HQ,03/Feb/2014 ,265000-IT & Telecommunications,NZ406-Strategic Estates Feeder,ATOS IT SERVICES UK LTD,1122319,56.92,IT peripherals/ individual ordered software and equipment
Ministry of Justice,MoJ HQ,03/Feb/2014 ,265000-IT & Telecommunications,NZ406-Strategic Estates Feeder,ATOS IT SERVICES UK LTD,1122319,150.00,IT peripherals/ individual ordered software and equipment
Ministry of Justice,MoJ HQ,03/Feb/2014 ,265000-IT & Telecommunications,NZ406-Strategic Estates Feeder,ATOS IT SERVICES UK LTD,1122319,264.00,IT peripherals/ individual ordered software and equipment
Ministry of Justice,MoJ HQ,03/Feb/2014 ,265000-IT & Telecommunications,NZ406-Strategic Estates Feeder,ATOS IT SERVICES UK LTD,1122319,164.00,IT peripherals/ individual ordered software and equipment
Ministry of Justice,MoJ HQ,03/Feb/2014 ,265000-IT & Telecommunications,NZ406-Strategic Estates Feeder,ATOS IT SERVICES UK LTD,1122319,46.00,IT peripherals/ individual ordered software and equipment
Ministry of Justice,MoJ HQ,03/Feb/2014 ,265000-IT & Telecommunications,NZ406-Strategic Estates Feeder,ATOS IT SERVICES UK LTD,1122319,46.00,IT peripherals/ individual ordered software and equipment
Ministry of Justice,MoJ HQ,03/Feb/2014 ,265000-IT & Telecommunications,NZ406-Strategic Estates Feeder,ATOS IT SERVICES UK LTD,1122319,46.00,IT peripherals/ individual ordered software and equipment
Ministry of Justice,MoJ HQ,03/Feb/2014 ,265000-IT & Telecommunications,NZ406-Strategic Estates Feeder,ATOS IT SERVICES UK LTD,1122319,46.00,IT peripherals/ individual ordered software and equipment
Ministry of Justice,MoJ HQ,03/Feb/2014 ,265000-IT & Telecommunications,NZ406-Strategic Estates Feeder,ATOS IT SERVICES UK LTD,1122319,25.78,IT peripherals/ individual ordered software and equipment
Ministry of Justice,MoJ HQ,03/Feb/2014 ,265000-IT & Telecommunications,NZ406-Strategic Estates Feeder,ATOS IT SERVICES UK LTD,1122319,46.00,IT peripherals/ individual ordered software and equipment
Ministry of Justice,MoJ HQ,03/Feb/2014 ,265000-IT & Telecommunications,NZ406-Strategic Estates Feeder,ATOS IT SERVICES UK LTD,1122319,46.00,IT peripherals/ individual ordered software and equipment
Ministry of Justice,MoJ HQ,03/Feb/2014 ,265000-IT & Telecommunications,NZ406-Strategic Estates Feeder,ATOS IT SERVICES UK LTD,1122319,82.78,IT peripherals/ individual ordered software and equipment
Ministry of Justice,MoJ HQ,03/Feb/2014 ,265000-IT & Telecommunications,NZ406-Strategic Estates Feeder,ATOS IT SERVICES UK LTD,1122319,164.00,IT peripherals/ individual ordered software and equipment
Ministry of Justice,MoJ HQ,03/Feb/2014 ,265000-IT & Telecommunications,NZ406-Strategic Estates Feeder,ATOS IT SERVICES UK LTD,1122319,46.00,IT peripherals/ individual ordered software and equipment
Ministry of Justice,MoJ HQ,03/Feb/2014 ,265000-IT & Telecommunications,NZ406-Strategic Estates Feeder,ATOS IT SERVICES UK LTD,1122319,82.78,IT peripherals/ individual ordered software and equipment
Ministry of Justice,MoJ HQ,03/Feb/2014 ,265000-IT & Telecommunications,NZ406-Strategic Estates Feeder,ATOS IT SERVICES UK LTD,1122319,58.47,IT peripherals/ individual ordered software and equipment
Ministry of Justice,MoJ HQ,03/Feb/2014 ,265000-IT & Telecommunications,NZ406-Strategic Estates Feeder,ATOS IT SERVICES UK LTD,1122319,78.26,IT peripherals/ individual ordered software and equipment
Ministry of Justice,MoJ HQ,03/Feb/2014 ,265000-IT & Telecommunications,NZ406-Strategic Estates Feeder,ATOS IT SERVICES UK LTD,1122319,82.78,IT peripherals/ individual ordered software and equipment
Ministry of Justice,MoJ HQ,03/Feb/2014 ,265000-IT & Telecommunications,NZ406-Strategic Estates Feeder,ATOS IT SERVICES UK LTD,1122319,46.00,IT peripherals/ individual ordered software and equipment
Ministry of Justice,MoJ HQ,03/Feb/2014 ,265000-IT & Telecommunications,NZ406-Strategic Estates Feeder,ATOS IT SERVICES UK LTD,1122319,82.78,IT peripherals/ individual ordered software and equipment
Ministry of Justice,MoJ HQ,03/Feb/2014 ,265000-IT & Telecommunications,NZ406-Strategic Estates Feeder,ATOS IT SERVICES UK LTD,1122319,58.47,IT peripherals/ individual ordered software and equipment
Ministry of Justice,MoJ HQ,03/Feb/2014 ,265000-IT & Telecommunications,NZ406-Strategic Estates Feeder,ATOS IT SERVICES UK LTD,1122319,264.00,IT peripherals/ individual ordered software and equipment
Ministry of Justice,MoJ HQ,03/Feb/2014 ,265000-IT & Telecommunications,NZ406-Strategic Estates Feeder,ATOS IT SERVICES UK LTD,1122319,25.78,IT peripherals/ individual ordered software and equipment
Ministry of Justice,MoJ HQ,03/Feb/2014 ,265000-IT & Telecommunications,NZ406-Strategic Estates Feeder,ATOS IT SERVICES UK LTD,1122319,46.00,IT peripherals/ individual ordered software and equipment
Ministry of Justice,MoJ HQ,03/Feb/2014 ,265000-IT & Telecommunications,NZ406-Strategic Estates Feeder,ATOS IT SERVICES UK LTD,1122319,46.00,IT peripherals/ individual ordered software and equipment
Ministry of Justice,MoJ HQ,03/Feb/2014 ,265000-IT & Telecommunications,NZ406-Strategic Estates Feeder,ATOS IT SERVICES UK LTD,1122319,58.47,IT peripherals/ individual ordered software and equipment
Ministry of Justice,MoJ HQ,03/Feb/2014 ,265000-IT & Telecommunications,NZ406-Strategic Estates Feeder,ATOS IT SERVICES UK LTD,1122319,78.26,IT peripherals/ individual ordered software and equipment
Ministry of Justice,MoJ HQ,03/Feb/2014 ,265000-IT & Telecommunications,NZ406-Strategic Estates Feeder,ATOS IT SERVICES UK LTD,1122319,78.26,IT peripherals/ individual ordered software and equipment
Ministry of Justice,MoJ HQ,03/Feb/2014 ,265000-IT & Telecommunications,NZ406-Strategic Estates Feeder,ATOS IT SERVICES UK LTD,1122319,375.00,IT peripherals/ individual ordered software and equipment
Ministry of Justice,MoJ HQ,03/Feb/2014 ,265000-IT & Telecommunications,NZ406-Strategic Estates Feeder,ATOS IT SERVICES UK LTD,1122319,668.60,IT peripherals/ individual ordered software and equipment
Ministry of Justice,MoJ HQ,06/Feb/2014 ,265000-IT & Telecommunications,NZ406-Strategic Estates Feeder,ATOS IT SERVICES UK LTD,1122575,"43,912.80",ICT Relocation of Law Commission Staff from Steel House to 102 Petty France
Ministry of Justice,MoJ HQ,06/Feb/2014 ,265000-IT & Telecommunications,NZ406-Strategic Estates Feeder,ATOS IT SERVICES UK LTD,1122575,"42,826.00",ICT Relocation of Law Commission Staff from Steel House to 102 Petty France
Ministry of Justice,MoJ HQ,03/Feb/2014 ,265000-IT & Telecommunications,NZ406-Strategic Estates Feeder,ATOS IT SERVICES UK LTD,1122319,"29,236.00",ICT HMIP Trafford House Relocation to Manchester Civil Justice Centre
Ministry of Justice,MoJ HQ,03/Feb/2014 ,265000-IT & Telecommunications,NZ406-Strategic Estates Feeder,ATOS IT SERVICES UK LTD,1122319,116.00,IT peripherals/ individual ordered software and equipment
Ministry of Justice,MoJ HQ,03/Feb/2014 ,265000-IT & Telecommunications,NZ406-Strategic Estates Feeder,ATOS IT SERVICES UK LTD,1122319,164.00,IT peripherals/ individual ordered software and equipment
Ministry of Justice,MoJ HQ,03/Feb/2014 ,265000-IT & Telecommunications,NZ406-Strategic Estates Feeder,ATOS IT SERVICES UK LTD,1122319,46.00,IT peripherals/ individual ordered software and equipment
Ministry of Justice,MoJ HQ,03/Feb/2014 ,265000-IT & Telecommunications,NZ406-Strategic Estates Feeder,ATOS IT SERVICES UK LTD,1122319,66.86,IT peripherals/ individual ordered software and equipment
Ministry of Justice,MoJ HQ,03/Feb/2014 ,265000-IT & Telecommunications,NX900-MOJ Shared Services,ATOS IT SERVICES UK LTD,1122319,46.00,IT peripherals/ individual ordered software and equipment
Ministry of Justice,MoJ HQ,03/Feb/2014 ,265000-IT & Telecommunications,NX900-MOJ Shared Services,ATOS IT SERVICES UK LTD,1122319,46.00,IT peripherals/ individual ordered software and equipment
Ministry of Justice,MoJ HQ,03/Feb/2014 ,265000-IT & Telecommunications,NX900-MOJ Shared Services,ATOS IT SERVICES UK LTD,1122319,66.86,IT peripherals/ individual ordered software and equipment
Ministry of Justice,MoJ HQ,03/Feb/2014 ,265000-IT & Telecommunications,NX900-MOJ Shared Services,ATOS IT SERVICES UK LTD,1122319,133.72,IT peripherals/ individual ordered software and equipment
Ministry of Justice,MoJ HQ,03/Feb/2014 ,265000-IT & Telecommunications,NX900-MOJ Shared Services,ATOS IT SERVICES UK LTD,1122319,60.34,IT peripherals/ individual ordered software and equipment
Ministry of Justice,MoJ HQ,03/Feb/2014 ,265000-IT & Telecommunications,NX900-MOJ Shared Services,ATOS IT SERVICES UK LTD,1122319,89.44,IT peripherals/ individual ordered software and equipment
Ministry of Justice,MoJ HQ,03/Feb/2014 ,265000-IT & Telecommunications,NX900-MOJ Shared Services,ATOS IT SERVICES UK LTD,1122319,8.51,IT peripherals/ individual ordered software and equipment
Ministry of Justice,MoJ HQ,03/Feb/2014 ,265000-IT & Telecommunications,NX900-MOJ Shared Services,ATOS IT SERVICES UK LTD,1122319,164.00,IT peripherals/ individual ordered software and equipment
Ministry of Justice,MoJ HQ,03/Feb/2014 ,265000-IT & Telecommunications,NX900-MOJ Shared Services,ATOS IT SERVICES UK LTD,1122319,8.51,IT peripherals/ individual ordered software and equipment
Ministry of Justice,MoJ HQ,03/Feb/2014 ,265000-IT & Telecommunications,NX900-MOJ Shared Services,ATOS IT SERVICES UK LTD,1122319,92.00,IT peripherals/ individual ordered software and equipment
Ministry of Justice,MoJ HQ,03/Feb/2014 ,265000-IT & Telecommunications,NX900-MOJ Shared Services,ATOS IT SERVICES UK LTD,1122319,11.62,IT peripherals/ individual ordered software and equipment
Ministry of Justice,MoJ HQ,03/Feb/2014 ,265000-IT & Telecommunications,OZ501-HRD Feeder,ATOS IT SERVICES UK LTD,1122319,164.00,IT peripherals/ individual ordered software and equipment
Ministry of Justice,MoJ HQ,03/Feb/2014 ,265000-IT & Telecommunications,OZ501-HRD Feeder,ATOS IT SERVICES UK LTD,1122319,17.16,IT peripherals/ individual ordered software and equipment
Ministry of Justice,MoJ HQ,03/Feb/2014 ,265000-IT & Telecommunications,OZ501-HRD Feeder,ATOS IT SERVICES UK LTD,1122319,46.00,IT peripherals/ individual ordered software and equipment
Ministry of Justice,MoJ HQ,03/Feb/2014 ,265000-IT & Telecommunications,OZ501-HRD Feeder,ATOS IT SERVICES UK LTD,1122319,264.00,IT peripherals/ individual ordered software and equipment
Ministry of Justice,MoJ HQ,03/Feb/2014 ,265000-IT & Telecommunications,OZ501-HRD Feeder,ATOS IT SERVICES UK LTD,1122319,46.00,IT peripherals/ individual ordered software and equipment
Ministry of Justice,MoJ HQ,03/Feb/2014 ,265000-IT & Telecommunications,OZ501-HRD Feeder,ATOS IT SERVICES UK LTD,1122319,164.00,IT peripherals/ individual ordered software and equipment
Ministry of Justice,MoJ HQ,03/Feb/2014 ,265000-IT & Telecommunications,OZ501-HRD Feeder,ATOS IT SERVICES UK LTD,1122319,78.26,IT peripherals/ individual ordered software and equipment
Ministry of Justice,MoJ HQ,03/Feb/2014 ,265000-IT & Telecommunications,NZ900-Finance & Corporate Services,ATOS IT SERVICES UK LTD,1122319,264.00,IT peripherals/ individual ordered software and equipment
Ministry of Justice,MoJ HQ,03/Feb/2014 ,265000-IT & Telecommunications,NZ900-Finance & Corporate Services,ATOS IT SERVICES UK LTD,1122319,11.62,IT peripherals/ individual ordered software and equipment
Ministry of Justice,MoJ HQ,03/Feb/2014 ,265000-IT & Telecommunications,NZ900-Finance & Corporate Services,ATOS IT SERVICES UK LTD,1122319,11.62,IT peripherals/ individual ordered software and equipment
Ministry of Justice,MoJ HQ,03/Feb/2014 ,265000-IT & Telecommunications,NZ900-Finance & Corporate Services,ATOS IT SERVICES UK LTD,1122319,11.62,IT peripherals/ individual ordered software and equipment
Ministry of Justice,MoJ HQ,03/Feb/2014 ,265000-IT & Telecommunications,NZ900-Finance & Corporate Services,ATOS IT SERVICES UK LTD,1122319,11.62,IT peripherals/ individual ordered software and equipment
Ministry of Justice,MoJ HQ,03/Feb/2014 ,265000-IT & Telecommunications,NZ900-Finance & Corporate Services,ATOS IT SERVICES UK LTD,1122319,11.62,IT peripherals/ individual ordered software and equipment
Ministry of Justice,MoJ HQ,03/Feb/2014 ,265000-IT & Telecommunications,NZ900-Finance & Corporate Services,ATOS IT SERVICES UK LTD,1122319,11.62,IT peripherals/ individual ordered software and equipment
Ministry of Justice,MoJ HQ,03/Feb/2014 ,265000-IT & Telecommunications,NZ900-Finance & Corporate Services,ATOS IT SERVICES UK LTD,1122319,11.62,IT peripherals/ individual ordered software and equipment
Ministry of Justice,MoJ HQ,03/Feb/2014 ,265000-IT & Telecommunications,NZ900-Finance & Corporate Services,ATOS IT SERVICES UK LTD,1122319,82.78,IT peripherals/ individual ordered software and equipment
Ministry of Justice,MoJ HQ,03/Feb/2014 ,265000-IT & Telecommunications,NZ900-Finance & Corporate Services,ATOS IT SERVICES UK LTD,1122319,11.62,IT peripherals/ individual ordered software and equipment
Ministry of Justice,MoJ HQ,03/Feb/2014 ,265000-IT & Telecommunications,NZ900-Finance & Corporate Services,ATOS IT SERVICES UK LTD,1122319,11.62,IT peripherals/ individual ordered software and equipment
Ministry of Justice,MoJ HQ,03/Feb/2014 ,265000-IT & Telecommunications,NZ900-Finance & Corporate Services,ATOS IT SERVICES UK LTD,1122319,"601,175.30",ICT Desktops
Ministry of Justice,MoJ HQ,03/Feb/2014 ,265000-IT & Telecommunications,NZ900-Finance & Corporate Services,ATOS IT SERVICES UK LTD,1122319,18.33,IT peripherals/ individual ordered software and equipment
Ministry of Justice,MoJ HQ,03/Feb/2014 ,265000-IT & Telecommunications,NZ900-Finance & Corporate Services,ATOS IT SERVICES UK LTD,1122319,168.02,IT peripherals/ individual ordered software and equipment
Ministry of Justice,MoJ HQ,03/Feb/2014 ,265000-IT & Telecommunications,NZ900-Finance & Corporate Services,ATOS IT SERVICES UK LTD,1122319,"103,165.60",ICT Laptops
Ministry of Justice,MoJ HQ,03/Feb/2014 ,265000-IT & Telecommunications,NZ900-Finance & Corporate Services,ATOS IT SERVICES UK LTD,1122319,"1,325,208.73",ICT Network Services
Ministry of Justice,MoJ HQ,03/Feb/2014 ,265000-IT & Telecommunications,NZ900-Finance & Corporate Services,ATOS IT SERVICES UK LTD,1122319,"582,987.00",ICT Service Desk
Ministry of Justice,MoJ HQ,03/Feb/2014 ,265000-IT & Telecommunications,NZ900-Finance & Corporate Services,ATOS IT SERVICES UK LTD,1122319,"936,993.10",ICT Hosting
Ministry of Justice,MoJ HQ,03/Feb/2014 ,265000-IT & Telecommunications,NZ900-Finance & Corporate Services,ATOS IT SERVICES UK LTD,1122319,"175,993.25",ICT Hosting
Ministry of Justice,MoJ HQ,03/Feb/2014 ,265000-IT & Telecommunications,NZ900-Finance & Corporate Services,ATOS IT SERVICES UK LTD,1122319,"24,478.06",ICT Telephony
Ministry of Justice,MoJ HQ,03/Feb/2014 ,265000-IT & Telecommunications,NZ900-Finance & Corporate Services,ATOS IT SERVICES UK LTD,1122319,"4,895.61",ICT Telephony
Ministry of Justice,MoJ HQ,03/Feb/2014 ,265000-IT & Telecommunications,NZ900-Finance & Corporate Services,ATOS IT SERVICES UK LTD,1122319,"37,532.27",ICT Telephony
Ministry of Justice,MoJ HQ,03/Feb/2014 ,265000-IT & Telecommunications,NZ900-Finance & Corporate Services,ATOS IT SERVICES UK LTD,1122319,"7,506.45",ICT Telephony
Ministry of Justice,MoJ HQ,03/Feb/2014 ,265000-IT & Telecommunications,NZ900-Finance & Corporate Services,ATOS IT SERVICES UK LTD,1122319,"139,067.72",ICT General
Ministry of Justice,MoJ HQ,03/Feb/2014 ,265000-IT & Telecommunications,NZ900-Finance & Corporate Services,ATOS IT SERVICES UK LTD,1122319,859.37,Standard Power Down Request for DISC connected site with no site engineer assistance required
Ministry of Justice,MoJ HQ,03/Feb/2014 ,265000-IT & Telecommunications,NZ900-Finance & Corporate Services,ATOS IT SERVICES UK LTD,1122319,859.37,Standard Power Down Request for DISC connected site with no site engineer assistance required
Ministry of Justice,MoJ HQ,03/Feb/2014 ,265000-IT & Telecommunications,NZ900-Finance & Corporate Services,ATOS IT SERVICES UK LTD,1122319,"1,398.30",Standard Power Down Request for DISC connected site with on site engineer assistance required
Ministry of Justice,MoJ HQ,03/Feb/2014 ,265000-IT & Telecommunications,NZ900-Finance & Corporate Services,ATOS IT SERVICES UK LTD,1122319,859.37,Standard Power Down Request for DISC connected site with no site engineer assistance required
Ministry of Justice,MoJ HQ,03/Feb/2014 ,265000-IT & Telecommunications,NZ900-Finance & Corporate Services,ATOS IT SERVICES UK LTD,1122319,"2,320.09",Emergency  Power Down Request for DISC connected site with no site engineer assistance required
Ministry of Justice,MoJ HQ,03/Feb/2014 ,265000-IT & Telecommunications,NZ900-Finance & Corporate Services,ATOS IT SERVICES UK LTD,1122319,859.37,Standard Power Down Request for DISC connected site with no site engineer assistance required
Ministry of Justice,MoJ HQ,03/Feb/2014 ,265000-IT & Telecommunications,NZ900-Finance & Corporate Services,ATOS IT SERVICES UK LTD,1122319,859.37,Standard Power Down Request for DISC connected site with no site engineer assistance required
Ministry of Justice,MoJ HQ,03/Feb/2014 ,265000-IT & Telecommunications,NZ900-Finance & Corporate Services,ATOS IT SERVICES UK LTD,1122319,"1,398.30",Standard Power Down Request for DISC connected site with on site engineer assistance required
Ministry of Justice,MoJ HQ,03/Feb/2014 ,265000-IT & Telecommunications,NZ900-Finance & Corporate Services,ATOS IT SERVICES UK LTD,1122319,859.37,Standard Power Down Request for DISC connected site with no site engineer assistance required
Ministry of Justice,MoJ HQ,03/Feb/2014 ,265000-IT & Telecommunications,NZ900-Finance & Corporate Services,ATOS IT SERVICES UK LTD,1122319,859.37,Standard Power Down Request for DISC connected site with no site engineer assistance required
Ministry of Justice,MoJ HQ,03/Feb/2014 ,265000-IT & Telecommunications,NZ900-Finance & Corporate Services,ATOS IT SERVICES UK LTD,1122319,"2,320.09",Emergency  Power Down Request for DISC connected site with no site engineer assistance required
Ministry of Justice,MoJ HQ,03/Feb/2014 ,265000-IT & Telecommunications,NZ900-Finance & Corporate Services,ATOS IT SERVICES UK LTD,1122319,69.75,IT peripherals/ individual ordered software and equipment
Ministry of Justice,MoJ HQ,03/Feb/2014 ,265000-IT & Telecommunications,NZ900-Finance & Corporate Services,ATOS IT SERVICES UK LTD,1122319,264.00,IT peripherals/ individual ordered software and equipment
Ministry of Justice,MoJ HQ,03/Feb/2014 ,265000-IT & Telecommunications,NZ900-Finance & Corporate Services,ATOS IT SERVICES UK LTD,1122319,46.00,IT peripherals/ individual ordered software and equipment
Ministry of Justice,MoJ HQ,03/Feb/2014 ,265000-IT & Telecommunications,NZ900-Finance & Corporate Services,ATOS IT SERVICES UK LTD,1122319,82.78,IT peripherals/ individual ordered software and equipment
Ministry of Justice,MoJ HQ,24/Feb/2014 ,222002-Other Property Costs,NZ900-Finance & Corporate Services,ATOS IT SERVICES UK LTD,1124087,"78,497.86",Support delivery of IT Services.
Ministry of Justice,MoJ HQ,24/Feb/2014 ,222002-Other Property Costs,NZ900-Finance & Corporate Services,ATOS IT SERVICES UK LTD,1124087,"15,699.57",Support delivery of IT Services.
Ministry of Justice,MoJ HQ,24/Feb/2014 ,222002-Other Property Costs,NZ900-Finance & Corporate Services,ATOS IT SERVICES UK LTD,1124087,"53,189.30",Support delivery of IT Services.
Ministry of Justice,MoJ HQ,24/Feb/2014 ,222002-Other Property Costs,NZ900-Finance & Corporate Services,ATOS IT SERVICES UK LTD,1124087,"10,637.86",Support delivery of IT Services.
Ministry of Justice,MoJ HQ,03/Feb/2014 ,265000-IT & Telecommunications,NZ900-Finance & Corporate Services,ATOS IT SERVICES UK LTD,1122319,528.00,IT peripherals/ individual ordered software and equipment
Ministry of Justice,MoJ HQ,03/Feb/2014 ,265000-IT & Telecommunications,NZ900-Finance & Corporate Services,ATOS IT SERVICES UK LTD,1122319,164.00,IT peripherals/ individual ordered software and equipment
Ministry of Justice,MoJ HQ,03/Feb/2014 ,265000-IT & Telecommunications,NZ900-Finance & Corporate Services,ATOS IT SERVICES UK LTD,1122319,264.00,IT peripherals/ individual ordered software and equipment
Ministry of Justice,MoJ HQ,03/Feb/2014 ,265000-IT & Telecommunications,NZ900-Finance & Corporate Services,ATOS IT SERVICES UK LTD,1122319,46.00,IT peripherals/ individual ordered software and equipment
Ministry of Justice,MoJ HQ,03/Feb/2014 ,265000-IT & Telecommunications,NZ900-Finance & Corporate Services,ATOS IT SERVICES UK LTD,1122319,46.00,IT peripherals/ individual ordered software and equipment
Ministry of Justice,MoJ HQ,03/Feb/2014 ,265000-IT & Telecommunications,NZ900-Finance & Corporate Services,ATOS IT SERVICES UK LTD,1122319,11.62,IT peripherals/ individual ordered software and equipment
Ministry of Justice,MoJ HQ,03/Feb/2014 ,265000-IT & Telecommunications,NZ900-Finance & Corporate Services,ATOS IT SERVICES UK LTD,1122319,11.62,IT peripherals/ individual ordered software and equipment
Ministry of Justice,MoJ HQ,03/Feb/2014 ,265000-IT & Telecommunications,NZ900-Finance & Corporate Services,ATOS IT SERVICES UK LTD,1122319,11.62,IT peripherals/ individual ordered software and equipment
Ministry of Justice,MoJ HQ,03/Feb/2014 ,265000-IT & Telecommunications,NZ900-Finance & Corporate Services,ATOS IT SERVICES UK LTD,1122319,11.62,IT peripherals/ individual ordered software and equipment
Ministry of Justice,MoJ HQ,10/Feb/2014 ,265000-IT & Telecommunications,NZ900-Finance & Corporate Services,ATOS IT SERVICES UK LTD,1122902,"74,803.10",WAN connectivity to Server and LAN connectivity for Buckingham Palace Road and supporting services
Ministry of Justice,MoJ HQ,03/Feb/2014 ,265000-IT & Telecommunications,NZ900-Finance & Corporate Services,ATOS IT SERVICES UK LTD,1122319,82.78,IT peripherals/ individual ordered software and equipment
Ministry of Justice,MoJ HQ,03/Feb/2014 ,265000-IT & Telecommunications,NZ900-Finance & Corporate Services,ATOS IT SERVICES UK LTD,1122319,11.62,IT peripherals/ individual ordered software and equipment
Ministry of Justice,MoJ HQ,03/Feb/2014 ,265000-IT & Telecommunications,NZ900-Finance & Corporate Services,ATOS IT SERVICES UK LTD,1122319,22.25,IT peripherals/ individual ordered software and equipment
Ministry of Justice,MoJ HQ,03/Feb/2014 ,265000-IT & Telecommunications,NZ900-Finance & Corporate Services,ATOS IT SERVICES UK LTD,1122319,60.34,IT peripherals/ individual ordered software and equipment
Ministry of Justice,MoJ HQ,03/Feb/2014 ,265000-IT & Telecommunications,NZ900-Finance & Corporate Services,ATOS IT SERVICES UK LTD,1122319,108.00,IT peripherals/ individual ordered software and equipment
Ministry of Justice,MoJ HQ,03/Feb/2014 ,265000-IT & Telecommunications,NZ900-Finance & Corporate Services,ATOS IT SERVICES UK LTD,1122319,264.00,IT peripherals/ individual ordered software and equipment
Ministry of Justice,MoJ HQ,03/Feb/2014 ,265000-IT & Telecommunications,NZ900-Finance & Corporate Services,ATOS IT SERVICES UK LTD,1122319,264.00,IT peripherals/ individual ordered software and equipment
Ministry of Justice,MoJ HQ,03/Feb/2014 ,265000-IT & Telecommunications,NZ900-Finance & Corporate Services,ATOS IT SERVICES UK LTD,1122319,76.90,IT peripherals/ individual ordered software and equipment
Ministry of Justice,MoJ HQ,03/Feb/2014 ,265000-IT & Telecommunications,NZ900-Finance & Corporate Services,ATOS IT SERVICES UK LTD,1122319,46.00,IT peripherals/ individual ordered software and equipment
Ministry of Justice,MoJ HQ,03/Feb/2014 ,265000-IT & Telecommunications,NZ900-Finance & Corporate Services,ATOS IT SERVICES UK LTD,1122319,46.00,IT peripherals/ individual ordered software and equipment
Ministry of Justice,MoJ HQ,03/Feb/2014 ,265000-IT & Telecommunications,NZ900-Finance & Corporate Services,ATOS IT SERVICES UK LTD,1122319,25.78,IT peripherals/ individual ordered software and equipment
Ministry of Justice,MoJ HQ,03/Feb/2014 ,265000-IT & Telecommunications,NZ900-Finance & Corporate Services,ATOS IT SERVICES UK LTD,1122319,25.78,IT peripherals/ individual ordered software and equipment
Ministry of Justice,MoJ HQ,03/Feb/2014 ,265000-IT & Telecommunications,NZ900-Finance & Corporate Services,ATOS IT SERVICES UK LTD,1122319,46.00,IT peripherals/ individual ordered software and equipment
Ministry of Justice,MoJ HQ,03/Feb/2014 ,265000-IT & Telecommunications,NZ900-Finance & Corporate Services,ATOS IT SERVICES UK LTD,1122319,184.00,IT peripherals/ individual ordered software and equipment
Ministry of Justice,MoJ HQ,03/Feb/2014 ,265000-IT & Telecommunications,NZ900-Finance & Corporate Services,ATOS IT SERVICES UK LTD,1122319,46.00,IT peripherals/ individual ordered software and equipment
Ministry of Justice,MoJ HQ,03/Feb/2014 ,265000-IT & Telecommunications,NZ900-Finance & Corporate Services,ATOS IT SERVICES UK LTD,1122319,46.00,IT peripherals/ individual ordered software and equipment
Ministry of Justice,MoJ HQ,03/Feb/2014 ,265000-IT & Telecommunications,NZ900-Finance & Corporate Services,ATOS IT SERVICES UK LTD,1122319,46.00,IT peripherals/ individual ordered software and equipment
Ministry of Justice,MoJ HQ,03/Feb/2014 ,265000-IT & Telecommunications,NZ900-Finance & Corporate Services,ATOS IT SERVICES UK LTD,1122319,46.00,IT peripherals/ individual ordered software and equipment
Ministry of Justice,MoJ HQ,03/Feb/2014 ,265000-IT & Telecommunications,NZ900-Finance & Corporate Services,ATOS IT SERVICES UK LTD,1122319,46.00,IT peripherals/ individual ordered software and equipment
Ministry of Justice,MoJ HQ,03/Feb/2014 ,265000-IT & Telecommunications,NZ900-Finance & Corporate Services,ATOS IT SERVICES UK LTD,1122319,25.78,IT peripherals/ individual ordered software and equipment
Ministry of Justice,MoJ HQ,03/Feb/2014 ,265000-IT & Telecommunications,NZ900-Finance & Corporate Services,ATOS IT SERVICES UK LTD,1122319,"131,289.08",ICT Hosting
Ministry of Justice,MoJ HQ,27/Feb/2014 ,265000-IT & Telecommunications,NZ900-Finance & Corporate Services,ATOS IT SERVICES UK LTD,1124312,"131,289.08",ICT Hosting
Ministry of Justice,MoJ HQ,03/Feb/2014 ,265000-IT & Telecommunications,NZ900-Finance & Corporate Services,ATOS IT SERVICES UK LTD,1122319,11.62,IT peripherals/ individual ordered software and equipment
Ministry of Justice,MoJ HQ,03/Feb/2014 ,265000-IT & Telecommunications,NZ900-Finance & Corporate Services,ATOS IT SERVICES UK LTD,1122319,11.62,IT peripherals/ individual ordered software and equipment
Ministry of Justice,MoJ HQ,03/Feb/2014 ,265000-IT & Telecommunications,NZ900-Finance & Corporate Services,ATOS IT SERVICES UK LTD,1122319,11.62,IT peripherals/ individual ordered software and equipment
Ministry of Justice,MoJ HQ,03/Feb/2014 ,265000-IT & Telecommunications,NZ900-Finance & Corporate Services,ATOS IT SERVICES UK LTD,1122319,11.62,IT peripherals/ individual ordered software and equipment
Ministry of Justice,MoJ HQ,03/Feb/2014 ,265000-IT & Telecommunications,NZ900-Finance & Corporate Services,ATOS IT SERVICES UK LTD,1122319,11.62,IT peripherals/ individual ordered software and equipment
Ministry of Justice,MoJ HQ,03/Feb/2014 ,265000-IT & Telecommunications,NZ900-Finance & Corporate Services,ATOS IT SERVICES UK LTD,1122319,11.62,IT peripherals/ individual ordered software and equipment
Ministry of Justice,MoJ HQ,03/Feb/2014 ,265000-IT & Telecommunications,NZ900-Finance & Corporate Services,ATOS IT SERVICES UK LTD,1122319,11.62,IT peripherals/ individual ordered software and equipment
Ministry of Justice,MoJ HQ,27/Feb/2014 ,265000-IT & Telecommunications,NZ900-Finance & Corporate Services,ATOS IT SERVICES UK LTD,1124312,"27,658.67",Computer Services
Ministry of Justice,MoJ HQ,03/Feb/2014 ,265000-IT & Telecommunications,NZ900-Finance & Corporate Services,ATOS IT SERVICES UK LTD,1122319,11.62,IT peripherals/ individual ordered software and equipment
Ministry of Justice,MoJ HQ,03/Feb/2014 ,265000-IT & Telecommunications,NZ900-Finance & Corporate Services,ATOS IT SERVICES UK LTD,1122319,82.78,IT peripherals/ individual ordered software and equipment
Ministry of Justice,MoJ HQ,03/Feb/2014 ,265000-IT & Telecommunications,NZ900-Finance & Corporate Services,ATOS IT SERVICES UK LTD,1122319,11.62,IT peripherals/ individual ordered software and equipment
Ministry of Justice,MoJ HQ,03/Feb/2014 ,265000-IT & Telecommunications,NZ900-Finance & Corporate Services,ATOS IT SERVICES UK LTD,1122319,25.23,IT peripherals/ individual ordered software and equipment
Ministry of Justice,MoJ HQ,03/Feb/2014 ,265000-IT & Telecommunications,NZ900-Finance & Corporate Services,ATOS IT SERVICES UK LTD,1122319,25.23,IT peripherals/ individual ordered software and equipment
Ministry of Justice,MoJ HQ,03/Feb/2014 ,265000-IT & Telecommunications,NZ900-Finance & Corporate Services,ATOS IT SERVICES UK LTD,1122319,11.62,IT peripherals/ individual ordered software and equipment
Ministry of Justice,MoJ HQ,03/Feb/2014 ,265000-IT & Telecommunications,NZ900-Finance & Corporate Services,ATOS IT SERVICES UK LTD,1122319,11.62,IT peripherals/ individual ordered software and equipment
Ministry of Justice,MoJ HQ,03/Feb/2014 ,265000-IT & Telecommunications,NZ900-Finance & Corporate Services,ATOS IT SERVICES UK LTD,1122319,11.62,IT peripherals/ individual ordered software and equipment
Ministry of Justice,MoJ HQ,03/Feb/2014 ,265000-IT & Telecommunications,NZ900-Finance & Corporate Services,ATOS IT SERVICES UK LTD,1122319,82.78,IT peripherals/ individual ordered software and equipment
Ministry of Justice,MoJ HQ,03/Feb/2014 ,265000-IT & Telecommunications,NZ900-Finance & Corporate Services,ATOS IT SERVICES UK LTD,1122319,25.23,IT peripherals/ individual ordered software and equipment
Ministry of Justice,MoJ HQ,03/Feb/2014 ,265000-IT & Telecommunications,NZ900-Finance & Corporate Services,ATOS IT SERVICES UK LTD,1122319,82.78,IT peripherals/ individual ordered software and equipment
Ministry of Justice,MoJ HQ,03/Feb/2014 ,265000-IT & Telecommunications,NZ900-Finance & Corporate Services,ATOS IT SERVICES UK LTD,1122319,111.45,IT peripherals/ individual ordered software and equipment
Ministry of Justice,MoJ HQ,03/Feb/2014 ,265000-IT & Telecommunications,NZ900-Finance & Corporate Services,ATOS IT SERVICES UK LTD,1122319,82.78,IT peripherals/ individual ordered software and equipment
Ministry of Justice,MoJ HQ,03/Feb/2014 ,265000-IT & Telecommunications,NZ900-Finance & Corporate Services,ATOS IT SERVICES UK LTD,1122319,25.23,IT peripherals/ individual ordered software and equipment
Ministry of Justice,MoJ HQ,03/Feb/2014 ,265000-IT & Telecommunications,NZ900-Finance & Corporate Services,ATOS IT SERVICES UK LTD,1122319,11.62,IT peripherals/ individual ordered software and equipment
Ministry of Justice,MoJ HQ,03/Feb/2014 ,265000-IT & Telecommunications,NZ900-Finance & Corporate Services,ATOS IT SERVICES UK LTD,1122319,11.62,IT peripherals/ individual ordered software and equipment
Ministry of Justice,MoJ HQ,03/Feb/2014 ,265000-IT & Telecommunications,NZ900-Finance & Corporate Services,ATOS IT SERVICES UK LTD,1122319,11.62,IT peripherals/ individual ordered software and equipment
Ministry of Justice,MoJ HQ,03/Feb/2014 ,265000-IT & Telecommunications,NZ900-Finance & Corporate Services,ATOS IT SERVICES UK LTD,1122319,11.62,IT peripherals/ individual ordered software and equipment
Ministry of Justice,MoJ HQ,03/Feb/2014 ,265000-IT & Telecommunications,NZ900-Finance & Corporate Services,ATOS IT SERVICES UK LTD,1122319,78.26,IT peripherals/ individual ordered software and equipment
Ministry of Justice,MoJ HQ,03/Feb/2014 ,265000-IT & Telecommunications,NZ900-Finance & Corporate Services,ATOS IT SERVICES UK LTD,1122319,78.26,IT peripherals/ individual ordered software and equipment
Ministry of Justice,MoJ HQ,03/Feb/2014 ,265000-IT & Telecommunications,NZ900-Finance & Corporate Services,ATOS IT SERVICES UK LTD,1122319,11.62,IT peripherals/ individual ordered software and equipment
Ministry of Justice,MoJ HQ,03/Feb/2014 ,265000-IT & Telecommunications,NZ900-Finance & Corporate Services,ATOS IT SERVICES UK LTD,1122319,25.23,IT peripherals/ individual ordered software and equipment
Ministry of Justice,MoJ HQ,03/Feb/2014 ,265000-IT & Telecommunications,NZ900-Finance & Corporate Services,ATOS IT SERVICES UK LTD,1122319,78.26,IT peripherals/ individual ordered software and equipment
Ministry of Justice,MoJ HQ,03/Feb/2014 ,265000-IT & Telecommunications,NZ900-Finance & Corporate Services,ATOS IT SERVICES UK LTD,1122319,50.46,IT peripherals/ individual ordered software and equipment
Ministry of Justice,MoJ HQ,03/Feb/2014 ,265000-IT & Telecommunications,NZ900-Finance & Corporate Services,ATOS IT SERVICES UK LTD,1122319,78.26,IT peripherals/ individual ordered software and equipment
Ministry of Justice,MoJ HQ,03/Feb/2014 ,265000-IT & Telecommunications,NZ900-Finance & Corporate Services,ATOS IT SERVICES UK LTD,1122319,51.56,IT peripherals/ individual ordered software and equipment
Ministry of Justice,MoJ HQ,03/Feb/2014 ,265000-IT & Telecommunications,NZ900-Finance & Corporate Services,ATOS IT SERVICES UK LTD,1122319,25.78,IT peripherals/ individual ordered software and equipment
Ministry of Justice,MoJ HQ,03/Feb/2014 ,265000-IT & Telecommunications,NZ900-Finance & Corporate Services,ATOS IT SERVICES UK LTD,1122319,150.12,IT peripherals/ individual ordered software and equipment
Ministry of Justice,MoJ HQ,03/Feb/2014 ,265000-IT & Telecommunications,NZ900-Finance & Corporate Services,ATOS IT SERVICES UK LTD,1122319,164.00,IT peripherals/ individual ordered software and equipment
Ministry of Justice,MoJ HQ,03/Feb/2014 ,265000-IT & Telecommunications,NZ900-Finance & Corporate Services,ATOS IT SERVICES UK LTD,1122319,46.00,IT peripherals/ individual ordered software and equipment
Ministry of Justice,MoJ HQ,03/Feb/2014 ,265000-IT & Telecommunications,NZ900-Finance & Corporate Services,ATOS IT SERVICES UK LTD,1122319,25.78,IT peripherals/ individual ordered software and equipment
Ministry of Justice,MoJ HQ,03/Feb/2014 ,265000-IT & Telecommunications,NZ900-Finance & Corporate Services,ATOS IT SERVICES UK LTD,1122319,11.62,IT peripherals/ individual ordered software and equipment
Ministry of Justice,MoJ HQ,03/Feb/2014 ,265000-IT & Telecommunications,NZ900-Finance & Corporate Services,ATOS IT SERVICES UK LTD,1122319,11.62,IT peripherals/ individual ordered software and equipment
Ministry of Justice,MoJ HQ,03/Feb/2014 ,265000-IT & Telecommunications,NZ900-Finance & Corporate Services,ATOS IT SERVICES UK LTD,1122319,78.26,IT peripherals/ individual ordered software and equipment
Ministry of Justice,MoJ HQ,03/Feb/2014 ,265000-IT & Telecommunications,NZ900-Finance & Corporate Services,ATOS IT SERVICES UK LTD,1122319,11.62,IT peripherals/ individual ordered software and equipment
Ministry of Justice,MoJ HQ,03/Feb/2014 ,265000-IT & Telecommunications,NZ900-Finance & Corporate Services,ATOS IT SERVICES UK LTD,1122319,82.78,IT peripherals/ individual ordered software and equipment
Ministry of Justice,MoJ HQ,03/Feb/2014 ,265000-IT & Telecommunications,NZ900-Finance & Corporate Services,ATOS IT SERVICES UK LTD,1122319,11.62,IT peripherals/ individual ordered software and equipment
Ministry of Justice,MoJ HQ,03/Feb/2014 ,265000-IT & Telecommunications,NZ900-Finance & Corporate Services,ATOS IT SERVICES UK LTD,1122319,25.23,IT peripherals/ individual ordered software and equipment
Ministry of Justice,MoJ HQ,03/Feb/2014 ,265000-IT & Telecommunications,NZ900-Finance & Corporate Services,ATOS IT SERVICES UK LTD,1122319,11.17,IT peripherals/ individual ordered software and equipment
Ministry of Justice,MoJ HQ,03/Feb/2014 ,265000-IT & Telecommunications,NZ900-Finance & Corporate Services,ATOS IT SERVICES UK LTD,1122319,23.24,IT peripherals/ individual ordered software and equipment
Ministry of Justice,MoJ HQ,03/Feb/2014 ,265000-IT & Telecommunications,NZ900-Finance & Corporate Services,ATOS IT SERVICES UK LTD,1122319,470.00,IT peripherals/ individual ordered software and equipment
Ministry of Justice,MoJ HQ,03/Feb/2014 ,265000-IT & Telecommunications,NZ900-Finance & Corporate Services,ATOS IT SERVICES UK LTD,1122319,"1,165.00",IT peripherals/ individual ordered software and equipment
Ministry of Justice,MoJ HQ,03/Feb/2014 ,265000-IT & Telecommunications,NZ900-Finance & Corporate Services,ATOS IT SERVICES UK LTD,1122319,470.00,IT peripherals/ individual ordered software and equipment
Ministry of Justice,MoJ HQ,03/Feb/2014 ,265000-IT & Telecommunications,NZ900-Finance & Corporate Services,ATOS IT SERVICES UK LTD,1122319,"1,165.00",IT peripherals/ individual ordered software and equipment
Ministry of Justice,MoJ HQ,03/Feb/2014 ,265000-IT & Telecommunications,NZ900-Finance & Corporate Services,ATOS IT SERVICES UK LTD,1122319,300.00,IT peripherals/ individual ordered software and equipment
Ministry of Justice,MoJ HQ,03/Feb/2014 ,265000-IT & Telecommunications,NZ900-Finance & Corporate Services,ATOS IT SERVICES UK LTD,1122319,11.62,IT peripherals/ individual ordered software and equipment
Ministry of Justice,MoJ HQ,03/Feb/2014 ,265000-IT & Telecommunications,NZ900-Finance & Corporate Services,ATOS IT SERVICES UK LTD,1122319,11.62,IT peripherals/ individual ordered software and equipment
Ministry of Justice,MoJ HQ,03/Feb/2014 ,265000-IT & Telecommunications,NZ900-Finance & Corporate Services,ATOS IT SERVICES UK LTD,1122319,"1,398.30",Standard Power Down Request for DISC connected site with on site engineer assistance required
Ministry of Justice,MoJ HQ,20/Feb/2014 ,532000-Tangible GBV - Additions,NZ900-Finance & Corporate Services,ATOS IT SERVICES UK LTD,1123773,"344,537.00",IT Hardware
Ministry of Justice,MoJ HQ,20/Feb/2014 ,512000-Intangible GBV - Additions,NZ900-Finance & Corporate Services,ATOS IT SERVICES UK LTD,1123773,"255,374.36",Computer Services
Ministry of Justice,MoJ HQ,27/Feb/2014 ,512000-Intangible GBV - Additions,NZ900-Finance & Corporate Services,ATOS IT SERVICES UK LTD,1124312,"399,517.61",Computer Services
Ministry of Justice,MoJ HQ,03/Feb/2014 ,265000-IT & Telecommunications,NZ900-Finance & Corporate Services,ATOS IT SERVICES UK LTD,1122319,95.70,IT peripherals/ individual ordered software and equipement
Ministry of Justice,MoJ HQ,03/Feb/2014 ,265000-IT & Telecommunications,NZ900-Finance & Corporate Services,ATOS IT SERVICES UK LTD,1122319,76.90,IT peripherals/ individual ordered software and equipment
Ministry of Justice,MoJ HQ,03/Feb/2014 ,265000-IT & Telecommunications,NZ900-Finance & Corporate Services,ATOS IT SERVICES UK LTD,1122319,11.62,IT peripherals/ individual ordered software and equipment
Ministry of Justice,MoJ HQ,03/Feb/2014 ,265000-IT & Telecommunications,NZ900-Finance & Corporate Services,ATOS IT SERVICES UK LTD,1122319,34.86,IT peripherals/ individual ordered software and equipment
Ministry of Justice,MoJ HQ,03/Feb/2014 ,265000-IT & Telecommunications,NZ900-Finance & Corporate Services,ATOS IT SERVICES UK LTD,1122319,11.62,IT peripherals/ individual ordered software and equipment
Ministry of Justice,MoJ HQ,03/Feb/2014 ,265000-IT & Telecommunications,NZ900-Finance & Corporate Services,ATOS IT SERVICES UK LTD,1122319,11.62,IT peripherals/ individual ordered software and equipment
Ministry of Justice,MoJ HQ,03/Feb/2014 ,265000-IT & Telecommunications,NZ900-Finance & Corporate Services,ATOS IT SERVICES UK LTD,1122319,11.62,IT peripherals/ individual ordered software and equipment
Ministry of Justice,MoJ HQ,03/Feb/2014 ,265000-IT & Telecommunications,NZ900-Finance & Corporate Services,ATOS IT SERVICES UK LTD,1122319,11.10,IT peripherals/ individual ordered software and equipment
Ministry of Justice,MoJ HQ,03/Feb/2014 ,265000-IT & Telecommunications,NZ900-Finance & Corporate Services,ATOS IT SERVICES UK LTD,1122319,17.16,IT peripherals/ individual ordered software and equipment
Ministry of Justice,MoJ HQ,03/Feb/2014 ,265000-IT & Telecommunications,NZ900-Finance & Corporate Services,ATOS IT SERVICES UK LTD,1122319,78.26,IT peripherals/ individual ordered software and equipment
Ministry of Justice,MoJ HQ,03/Feb/2014 ,265000-IT & Telecommunications,NZ900-Finance & Corporate Services,ATOS IT SERVICES UK LTD,1122319,78.26,IT peripherals/ individual ordered software and equipment
Ministry of Justice,MoJ HQ,03/Feb/2014 ,265000-IT & Telecommunications,NZ900-Finance & Corporate Services,ATOS IT SERVICES UK LTD,1122319,136.38,IT peripherals/ individual ordered software and equipment
Ministry of Justice,MoJ HQ,03/Feb/2014 ,265000-IT & Telecommunications,NZ900-Finance & Corporate Services,ATOS IT SERVICES UK LTD,1122319,282.62,IT peripherals/ individual ordered software and equipment
Ministry of Justice,MoJ HQ,03/Feb/2014 ,265000-IT & Telecommunications,NZ900-Finance & Corporate Services,ATOS IT SERVICES UK LTD,1122319,282.62,IT peripherals/ individual ordered software and equipment
Ministry of Justice,MoJ HQ,03/Feb/2014 ,265000-IT & Telecommunications,NZ900-Finance & Corporate Services,ATOS IT SERVICES UK LTD,1122319,205.63,IT peripherals/ individual ordered software and equipment
Ministry of Justice,MoJ HQ,03/Feb/2014 ,265000-IT & Telecommunications,NZ900-Finance & Corporate Services,ATOS IT SERVICES UK LTD,1122319,"3,391.44",IT peripherals/ individual ordered software and equipment
Ministry of Justice,MoJ HQ,03/Feb/2014 ,265000-IT & Telecommunications,NZ900-Finance & Corporate Services,ATOS IT SERVICES UK LTD,1122319,482.72,IT peripherals/ individual ordered software and equipment
Ministry of Justice,MoJ HQ,03/Feb/2014 ,265000-IT & Telecommunications,NZ900-Finance & Corporate Services,ATOS IT SERVICES UK LTD,1122319,168.02,IT peripherals/ individual ordered software and equipment
Ministry of Justice,MoJ HQ,03/Feb/2014 ,265000-IT & Telecommunications,NZ900-Finance & Corporate Services,ATOS IT SERVICES UK LTD,1122319,18.33,IT peripherals/ individual ordered software and equipment
Ministry of Justice,MoJ HQ,03/Feb/2014 ,265000-IT & Telecommunications,NZ900-Finance & Corporate Services,ATOS IT SERVICES UK LTD,1122319,309.36,IT peripherals/ individual ordered software and equipment
Ministry of Justice,MoJ HQ,03/Feb/2014 ,265000-IT & Telecommunications,NZ900-Finance & Corporate Services,ATOS IT SERVICES UK LTD,1122319,46.00,IT peripherals/ individual ordered software and equipment
Ministry of Justice,MoJ HQ,03/Feb/2014 ,265000-IT & Telecommunications,NZ900-Finance & Corporate Services,ATOS IT SERVICES UK LTD,1122319,25.78,IT peripherals/ individual ordered software and equipment
Ministry of Justice,MoJ HQ,03/Feb/2014 ,265000-IT & Telecommunications,NZ900-Finance & Corporate Services,ATOS IT SERVICES UK LTD,1122319,25.78,IT peripherals/ individual ordered software and equipment
Ministry of Justice,MoJ HQ,03/Feb/2014 ,265000-IT & Telecommunications,NZ900-Finance & Corporate Services,ATOS IT SERVICES UK LTD,1122319,82.78,IT peripherals/ individual ordered software and equipment
Ministry of Justice,MoJ HQ,03/Feb/2014 ,265000-IT & Telecommunications,NZ900-Finance & Corporate Services,ATOS IT SERVICES UK LTD,1122319,447.45,IT peripherals/ individual ordered software and equipment
Ministry of Justice,MoJ HQ,03/Feb/2014 ,265000-IT & Telecommunications,NZ900-Finance & Corporate Services,ATOS IT SERVICES UK LTD,1122319,82.78,IT peripherals/ individual ordered software and equipment
Ministry of Justice,MoJ HQ,03/Feb/2014 ,265000-IT & Telecommunications,NZ900-Finance & Corporate Services,ATOS IT SERVICES UK LTD,1122319,82.78,IT peripherals/ individual ordered software and equipment
Ministry of Justice,MoJ HQ,03/Feb/2014 ,265000-IT & Telecommunications,NZ900-Finance & Corporate Services,ATOS IT SERVICES UK LTD,1122319,82.78,IT peripherals/ individual ordered software and equipment
Ministry of Justice,MoJ HQ,03/Feb/2014 ,265000-IT & Telecommunications,NZ900-Finance & Corporate Services,ATOS IT SERVICES UK LTD,1122319,82.78,IT peripherals/ individual ordered software and equipment
Ministry of Justice,MoJ HQ,03/Feb/2014 ,265000-IT & Telecommunications,NZ900-Finance & Corporate Services,ATOS IT SERVICES UK LTD,1122319,82.78,IT peripherals/ individual ordered software and equipment
Ministry of Justice,MoJ HQ,03/Feb/2014 ,265000-IT & Telecommunications,NZ900-Finance & Corporate Services,ATOS IT SERVICES UK LTD,1122319,11.62,IT peripherals/ individual ordered software and equipment
Ministry of Justice,MoJ HQ,03/Feb/2014 ,265000-IT & Telecommunications,NZ900-Finance & Corporate Services,ATOS IT SERVICES UK LTD,1122319,22.25,IT peripherals/ individual ordered software and equipment
Ministry of Justice,MoJ HQ,03/Feb/2014 ,265000-IT & Telecommunications,NZ900-Finance & Corporate Services,ATOS IT SERVICES UK LTD,1122319,22.25,IT peripherals/ individual ordered software and equipment
Ministry of Justice,MoJ HQ,03/Feb/2014 ,265000-IT & Telecommunications,NZ900-Finance & Corporate Services,ATOS IT SERVICES UK LTD,1122319,22.25,IT peripherals/ individual ordered software and equipment
Ministry of Justice,MoJ HQ,03/Feb/2014 ,265000-IT & Telecommunications,NZ900-Finance & Corporate Services,ATOS IT SERVICES UK LTD,1122319,22.25,IT peripherals/ individual ordered software and equipment
Ministry of Justice,MoJ HQ,03/Feb/2014 ,265000-IT & Telecommunications,NZ900-Finance & Corporate Services,ATOS IT SERVICES UK LTD,1122319,22.25,IT peripherals/ individual ordered software and equipment
Ministry of Justice,MoJ HQ,03/Feb/2014 ,265000-IT & Telecommunications,NZ900-Finance & Corporate Services,ATOS IT SERVICES UK LTD,1122319,43.22,IT peripherals/ individual ordered software and equipment
Ministry of Justice,MoJ HQ,03/Feb/2014 ,265000-IT & Telecommunications,NZ900-Finance & Corporate Services,ATOS IT SERVICES UK LTD,1122319,164.00,IT peripherals/ individual ordered software and equipment
Ministry of Justice,MoJ HQ,03/Feb/2014 ,265000-IT & Telecommunications,NZ900-Finance & Corporate Services,ATOS IT SERVICES UK LTD,1122319,164.00,IT peripherals/ individual ordered software and equipment
Ministry of Justice,MoJ HQ,03/Feb/2014 ,265000-IT & Telecommunications,NZ900-Finance & Corporate Services,ATOS IT SERVICES UK LTD,1122319,164.00,IT peripherals/ individual ordered software and equipment
Ministry of Justice,MoJ HQ,03/Feb/2014 ,265000-IT & Telecommunications,NZ900-Finance & Corporate Services,ATOS IT SERVICES UK LTD,1122319,164.00,IT peripherals/ individual ordered software and equipment
Ministry of Justice,MoJ HQ,03/Feb/2014 ,265000-IT & Telecommunications,NZ900-Finance & Corporate Services,ATOS IT SERVICES UK LTD,1122319,56.92,IT peripherals/ individual ordered software and equipment
Ministry of Justice,MoJ HQ,03/Feb/2014 ,265000-IT & Telecommunications,NZ900-Finance & Corporate Services,ATOS IT SERVICES UK LTD,1122319,76.90,IT peripherals/ individual ordered software and equipment
Ministry of Justice,MoJ HQ,03/Feb/2014 ,265000-IT & Telecommunications,NZ900-Finance & Corporate Services,ATOS IT SERVICES UK LTD,1122319,264.00,IT peripherals/ individual ordered software and equipment
Ministry of Justice,MoJ HQ,03/Feb/2014 ,265000-IT & Telecommunications,NZ900-Finance & Corporate Services,ATOS IT SERVICES UK LTD,1122319,164.00,IT peripherals/ individual ordered software and equipment
Ministry of Justice,MoJ HQ,03/Feb/2014 ,265000-IT & Telecommunications,NZ900-Finance & Corporate Services,ATOS IT SERVICES UK LTD,1122319,46.00,IT peripherals/ individual ordered software and equipment
Ministry of Justice,MoJ HQ,03/Feb/2014 ,265000-IT & Telecommunications,NZ900-Finance & Corporate Services,ATOS IT SERVICES UK LTD,1122319,46.00,IT peripherals/ individual ordered software and equipment
Ministry of Justice,MoJ HQ,03/Feb/2014 ,265000-IT & Telecommunications,NZ900-Finance & Corporate Services,ATOS IT SERVICES UK LTD,1122319,46.00,IT peripherals/ individual ordered software and equipment
Ministry of Justice,MoJ HQ,03/Feb/2014 ,265000-IT & Telecommunications,NZ900-Finance & Corporate Services,ATOS IT SERVICES UK LTD,1122319,46.00,IT peripherals/ individual ordered software and equipment
Ministry of Justice,MoJ HQ,03/Feb/2014 ,265000-IT & Telecommunications,NZ900-Finance & Corporate Services,ATOS IT SERVICES UK LTD,1122319,265.63,IT peripherals/ individual ordered software and equipment
Ministry of Justice,MoJ HQ,03/Feb/2014 ,265000-IT & Telecommunications,NZ900-Finance & Corporate Services,ATOS IT SERVICES UK LTD,1122319,265.63,IT peripherals/ individual ordered software and equipment
Ministry of Justice,MoJ HQ,03/Feb/2014 ,265000-IT & Telecommunications,NZ900-Finance & Corporate Services,ATOS IT SERVICES UK LTD,1122319,265.63,IT peripherals/ individual ordered software and equipment
Ministry of Justice,MoJ HQ,03/Feb/2014 ,265000-IT & Telecommunications,NZ900-Finance & Corporate Services,ATOS IT SERVICES UK LTD,1122319,265.63,IT peripherals/ individual ordered software and equipment
Ministry of Justice,MoJ HQ,03/Feb/2014 ,265000-IT & Telecommunications,NZ900-Finance & Corporate Services,ATOS IT SERVICES UK LTD,1122319,25.23,IT peripherals/ individual ordered software and equipment
Ministry of Justice,MoJ HQ,03/Feb/2014 ,265000-IT & Telecommunications,NZ900-Finance & Corporate Services,ATOS IT SERVICES UK LTD,1122319,265.63,IT peripherals/ individual ordered software and equipment
Ministry of Justice,MoJ HQ,03/Feb/2014 ,265000-IT & Telecommunications,NZ900-Finance & Corporate Services,ATOS IT SERVICES UK LTD,1122319,265.63,IT peripherals/ individual ordered software and equipment
Ministry of Justice,MoJ HQ,27/Feb/2014 ,265000-IT & Telecommunications,QY200-OU10 Billback,ATOS IT SERVICES UK LTD,1124312,"80,495.78",ICT Telephony Charges
Ministry of Justice,MoJ HQ,27/Feb/2014 ,265000-IT & Telecommunications,QY200-OU10 Billback,ATOS IT SERVICES UK LTD,1124312,"16,099.16",ICT Telephony Charges
Ministry of Justice,MoJ HQ,27/Feb/2014 ,265000-IT & Telecommunications,QY200-OU10 Billback,ATOS IT SERVICES UK LTD,1124312,"368,659.99",ICT Telephony Charges
Ministry of Justice,MoJ HQ,27/Feb/2014 ,265000-IT & Telecommunications,QY200-OU10 Billback,ATOS IT SERVICES UK LTD,1124312,"73,732.00",ICT Telephony Charges
Ministry of Justice,MoJ HQ,27/Feb/2014 ,265000-IT & Telecommunications,QY200-OU10 Billback,ATOS IT SERVICES UK LTD,1124312,"214,391.77",ICT Sustainable Print Service (SPS) Charges
Ministry of Justice,MoJ HQ,03/Feb/2014 ,265000-IT & Telecommunications,QZ500-Arms Length Bodies (CPG),ATOS IT SERVICES UK LTD,1122319,82.78,BlackBerry (Vodafone)
Ministry of Justice,MoJ HQ,03/Feb/2014 ,265000-IT & Telecommunications,QZ500-Arms Length Bodies (CPG),ATOS IT SERVICES UK LTD,1122319,37.45,Installation of 2-5 desktop client devices
Ministry of Justice,MoJ HQ,03/Feb/2014 ,265000-IT & Telecommunications,QZ500-Arms Length Bodies (CPG),ATOS IT SERVICES UK LTD,1122319,61.62,Kensington Optical Expert Trackball Mouse
Ministry of Justice,MoJ HQ,03/Feb/2014 ,265000-IT & Telecommunications,NZ401-Finance Group Feeder,ATOS IT SERVICES UK LTD,1122319,18.33,Low-noise / soft touch keyboard
Ministry of Justice,MoJ HQ,03/Feb/2014 ,265000-IT & Telecommunications,NZ401-Finance Group Feeder,ATOS IT SERVICES UK LTD,1122319,11.62,MS Project Standard
Ministry of Justice,MoJ HQ,03/Feb/2014 ,265000-IT & Telecommunications,NZ401-Finance Group Feeder,ATOS IT SERVICES UK LTD,1122319,11.62,Microsoft Visio Standard
Ministry of Justice,MoJ HQ,03/Feb/2014 ,265000-IT & Telecommunications,NZ401-Finance Group Feeder,ATOS IT SERVICES UK LTD,1122319,11.62,Microsoft Project Professional
Ministry of Justice,MoJ HQ,03/Feb/2014 ,265000-IT & Telecommunications,NZ401-Finance Group Feeder,ATOS IT SERVICES UK LTD,1122319,11.62,Microsoft Visio Professional
Ministry of Justice,MoJ HQ,03/Feb/2014 ,265000-IT & Telecommunications,NZ401-Finance Group Feeder,ATOS IT SERVICES UK LTD,1122319,133.72,Return BlackBerry device (no longer required)
Ministry of Justice,MoJ HQ,03/Feb/2014 ,265000-IT & Telecommunications,NZ401-Finance Group Feeder,ATOS IT SERVICES UK LTD,1122319,25.78,Deletion of 11-20 Internet Protocol Telephony Mobility User Accounts
Ministry of Justice,MoJ HQ,03/Feb/2014 ,265000-IT & Telecommunications,NZ900-Finance & Corporate Services,ATOS IT SERVICES UK LTD,1122319,25.78,New Internet Protocol Telephony Mobility account with voicemail account 11-20 Accounts
Ministry of Justice,MoJ HQ,03/Feb/2014 ,265000-IT & Telecommunications,NZ900-Finance & Corporate Services,ATOS IT SERVICES UK LTD,1122319,25.78,Internet Protocol Telephony Mobility Account Changes 1-10 Accounts
Ministry of Justice,MoJ HQ,03/Feb/2014 ,265000-IT & Telecommunications,NZ900-Finance & Corporate Services,ATOS IT SERVICES UK LTD,1122319,25.78,Internet Protocol Telephony Mobility Account Changes 1-10 Accounts
Ministry of Justice,MoJ HQ,03/Feb/2014 ,265000-IT & Telecommunications,NZ900-Finance & Corporate Services,ATOS IT SERVICES UK LTD,1122319,66.86,Return BlackBerry device (no longer required)
Ministry of Justice,MoJ HQ,03/Feb/2014 ,265000-IT & Telecommunications,NZ900-Finance & Corporate Services,ATOS IT SERVICES UK LTD,1122319,8.51,HP Basic Notebook Carrying Case
Ministry of Justice,MoJ HQ,03/Feb/2014 ,265000-IT & Telecommunications,NZ900-Finance & Corporate Services,ATOS IT SERVICES UK LTD,1122319,46.00,Provision and support of Secure Remote Access Capability
Ministry of Justice,MoJ HQ,03/Feb/2014 ,265000-IT & Telecommunications,NZ900-Finance & Corporate Services,ATOS IT SERVICES UK LTD,1122319,46.00,Provision and support of Secure Remote Access Capability
Ministry of Justice,MoJ HQ,03/Feb/2014 ,265000-IT & Telecommunications,NZ900-Finance & Corporate Services,ATOS IT SERVICES UK LTD,1122319,11.62,Request for user ID or PC to be excluded from the NightWatchman PC shutdown process
Ministry of Justice,MoJ HQ,03/Feb/2014 ,265000-IT & Telecommunications,NZ900-Finance & Corporate Services,ATOS IT SERVICES UK LTD,1122319,82.78,BlackBerry (Vodafone)
Ministry of Justice,MoJ HQ,03/Feb/2014 ,265000-IT & Telecommunications,NZ900-Finance & Corporate Services,ATOS IT SERVICES UK LTD,1122319,11.62,Microsoft Visio Standard
Ministry of Justice,MoJ HQ,03/Feb/2014 ,265000-IT & Telecommunications,NZ900-Finance & Corporate Services,ATOS IT SERVICES UK LTD,1122319,40.34,Provision of ICT system access
Ministry of Justice,MoJ HQ,03/Feb/2014 ,265000-IT & Telecommunications,NZ900-Finance & Corporate Services,ATOS IT SERVICES UK LTD,1122319,11.17,Microsoft Access
Ministry of Justice,MoJ HQ,03/Feb/2014 ,265000-IT & Telecommunications,NZ900-Finance & Corporate Services,ATOS IT SERVICES UK LTD,1122319,25.78,11-20 New Internet Protocol Telephony Mobility accounts with voicemail account
Ministry of Justice,MoJ HQ,03/Feb/2014 ,265000-IT & Telecommunications,NZ900-Finance & Corporate Services,ATOS IT SERVICES UK LTD,1122319,11.17,Microsoft Access
Ministry of Justice,MoJ HQ,03/Feb/2014 ,265000-IT & Telecommunications,NZ900-Finance & Corporate Services,ATOS IT SERVICES UK LTD,1122319,11.17,Microsoft Access
Ministry of Justice,MoJ HQ,03/Feb/2014 ,265000-IT & Telecommunications,NZ900-Finance & Corporate Services,ATOS IT SERVICES UK LTD,1122319,78.26,BlackBerry (Vodafone)
Ministry of Justice,MoJ HQ,03/Feb/2014 ,265000-IT & Telecommunications,NQ901-MOJ Procurement Feeder,ATOS IT SERVICES UK LTD,1122319,164.00,"Large Form Laptop - HP EliteBook 8570p (15.6"" screen)"
Ministry of Justice,MoJ HQ,03/Feb/2014 ,265000-IT & Telecommunications,NQ901-MOJ Procurement Feeder,ATOS IT SERVICES UK LTD,1122319,46.00,Provision and support of Secure Remote Access Capability
Ministry of Justice,MoJ HQ,03/Feb/2014 ,265000-IT & Telecommunications,LZ600-Transforming Justice,ATOS IT SERVICES UK LTD,1122319,164.00,"Provision of IT equipment, applications and services"
Ministry of Justice,MoJ HQ,03/Feb/2014 ,265000-IT & Telecommunications,LZ600-Transforming Justice,ATOS IT SERVICES UK LTD,1122319,"2,376.00","Provision of IT equipment, applications and services"
Ministry of Justice,MoJ HQ,03/Feb/2014 ,265000-IT & Telecommunications,LZ600-Transforming Justice,ATOS IT SERVICES UK LTD,1122319,"2,376.00","Provision of IT equipment, applications and services"
Ministry of Justice,MoJ HQ,03/Feb/2014 ,265000-IT & Telecommunications,LZ600-Transforming Justice,ATOS IT SERVICES UK LTD,1122319,164.00,"Provision of IT equipment, applications and services"
Ministry of Justice,MoJ HQ,03/Feb/2014 ,265000-IT & Telecommunications,LZ600-Transforming Justice,ATOS IT SERVICES UK LTD,1122319,328.00,"Provision of IT equipment, applications and services"
Ministry of Justice,MoJ HQ,03/Feb/2014 ,265000-IT & Telecommunications,LZ600-Transforming Justice,ATOS IT SERVICES UK LTD,1122319,46.00,"Provision of IT equipment, applications and services"
Ministry of Justice,MoJ HQ,03/Feb/2014 ,265000-IT & Telecommunications,LZ600-Transforming Justice,ATOS IT SERVICES UK LTD,1122319,460.00,"Provision of IT equipment, applications and services"
Ministry of Justice,MoJ HQ,03/Feb/2014 ,265000-IT & Telecommunications,LZ600-Transforming Justice,ATOS IT SERVICES UK LTD,1122319,460.00,"Provision of IT equipment, applications and services"
Ministry of Justice,MoJ HQ,03/Feb/2014 ,265000-IT & Telecommunications,LZ600-Transforming Justice,ATOS IT SERVICES UK LTD,1122319,46.00,"Provision of IT equipment, applications and services"
Ministry of Justice,MoJ HQ,03/Feb/2014 ,265000-IT & Telecommunications,LZ600-Transforming Justice,ATOS IT SERVICES UK LTD,1122319,46.00,"Provision of IT equipment, applications and services"
Ministry of Justice,MoJ HQ,03/Feb/2014 ,265000-IT & Telecommunications,LZ600-Transforming Justice,ATOS IT SERVICES UK LTD,1122319,92.00,"Provision of IT equipment, applications and services"
Ministry of Justice,MoJ HQ,03/Feb/2014 ,265000-IT & Telecommunications,LZ600-Transforming Justice,ATOS IT SERVICES UK LTD,1122319,11.62,"Provision of IT equipment, applications and services"
Ministry of Justice,MoJ HQ,03/Feb/2014 ,265000-IT & Telecommunications,LZ600-Transforming Justice,ATOS IT SERVICES UK LTD,1122319,82.78,"Provision of IT equipment, applications and services"
Ministry of Justice,MoJ HQ,03/Feb/2014 ,265000-IT & Telecommunications,LZ600-Transforming Justice,ATOS IT SERVICES UK LTD,1122319,82.78,"Provision of IT equipment, applications and services"
Ministry of Justice,MoJ HQ,03/Feb/2014 ,265000-IT & Telecommunications,LZ600-Transforming Justice,ATOS IT SERVICES UK LTD,1122319,25.23,"Provision of IT equipment, applications and services"
Ministry of Justice,MoJ HQ,03/Feb/2014 ,265000-IT & Telecommunications,LZ600-Transforming Justice,ATOS IT SERVICES UK LTD,1122319,82.78,"Provision of IT equipment, applications and services"
Ministry of Justice,MoJ HQ,03/Feb/2014 ,265000-IT & Telecommunications,LZ600-Transforming Justice,ATOS IT SERVICES UK LTD,1122319,82.78,"Provision of IT equipment, applications and services"
Ministry of Justice,MoJ HQ,03/Feb/2014 ,265000-IT & Telecommunications,LZ600-Transforming Justice,ATOS IT SERVICES UK LTD,1122319,82.78,"Provision of IT equipment, applications and services"
Ministry of Justice,MoJ HQ,03/Feb/2014 ,265000-IT & Telecommunications,LZ600-Transforming Justice,ATOS IT SERVICES UK LTD,1122319,82.78,"Provision of IT equipment, applications and services"
Ministry of Justice,MoJ HQ,03/Feb/2014 ,265000-IT & Telecommunications,LZ600-Transforming Justice,ATOS IT SERVICES UK LTD,1122319,82.78,"Provision of IT equipment, applications and services"
Ministry of Justice,MoJ HQ,03/Feb/2014 ,265000-IT & Telecommunications,LZ600-Transforming Justice,ATOS IT SERVICES UK LTD,1122319,50.90,"Provision of IT equipment, applications and services"
Ministry of Justice,MoJ HQ,03/Feb/2014 ,265000-IT & Telecommunications,LZ600-Transforming Justice,ATOS IT SERVICES UK LTD,1122319,11.62,"Provision of IT equipment, applications and services"
Ministry of Justice,MoJ HQ,03/Feb/2014 ,265000-IT & Telecommunications,LZ600-Transforming Justice,ATOS IT SERVICES UK LTD,1122319,82.78,"Provision of IT equipment, applications and services"
Ministry of Justice,MoJ HQ,03/Feb/2014 ,265000-IT & Telecommunications,LZ600-Transforming Justice,ATOS IT SERVICES UK LTD,1122319,82.78,"Provision of IT equipment, applications and services"
Ministry of Justice,MoJ HQ,03/Feb/2014 ,265000-IT & Telecommunications,QZ600-CPG Other,ATOS IT SERVICES UK LTD,1122319,78.26,Reassign BlackBerry device within Business Unit
Ministry of Justice,MoJ HQ,03/Feb/2014 ,265000-IT & Telecommunications,QZ600-CPG Other,ATOS IT SERVICES UK LTD,1122319,78.26,Reassign BlackBerry device within Business Unit
Ministry of Justice,MoJ HQ,03/Feb/2014 ,265000-IT & Telecommunications,QZ600-CPG Other,ATOS IT SERVICES UK LTD,1122319,82.78,BlackBerry (Vodafone)
Ministry of Justice,MoJ HQ,03/Feb/2014 ,265000-IT & Telecommunications,QZ600-CPG Other,ATOS IT SERVICES UK LTD,1122319,78.26,Reassign BlackBerry device within Business Unit
Ministry of Justice,MoJ HQ,03/Feb/2014 ,265000-IT & Telecommunications,QZ600-CPG Other,ATOS IT SERVICES UK LTD,1122319,82.78,BlackBerry (Vodafone)
Ministry of Justice,MoJ HQ,03/Feb/2014 ,265000-IT & Telecommunications,RB999-JPG - CJRD,ATOS IT SERVICES UK LTD,1122319,258.33,HP OfficeJet 100 Mobile Printer
Ministry of Justice,MoJ HQ,03/Feb/2014 ,265000-IT & Telecommunications,RB999-JPG - CJRD,ATOS IT SERVICES UK LTD,1122319,164.00,"Standard Form Laptop - HP EliteBook 8470p (14"" screen)"
Ministry of Justice,MoJ HQ,03/Feb/2014 ,265000-IT & Telecommunications,RB999-JPG - CJRD,ATOS IT SERVICES UK LTD,1122319,46.00,Provision and support of Secure Remote Access (RWSII) Capability
Ministry of Justice,MoJ HQ,03/Feb/2014 ,265000-IT & Telecommunications,RB999-JPG - CJRD,ATOS IT SERVICES UK LTD,1122319,46.00,Provision and support of Secure Remote Access (RWSII) Capability
Ministry of Justice,MoJ HQ,03/Feb/2014 ,265000-IT & Telecommunications,RB999-JPG - CJRD,ATOS IT SERVICES UK LTD,1122319,82.78,BlackBerry (Vodafone)
Ministry of Justice,MoJ HQ,03/Feb/2014 ,265000-IT & Telecommunications,RB999-JPG - CJRD,ATOS IT SERVICES UK LTD,1122319,82.78,BlackBerry (Vodafone)
Ministry of Justice,MoJ HQ,03/Feb/2014 ,265000-IT & Telecommunications,RC999-Criminal Justice Group - OMS,ATOS IT SERVICES UK LTD,1122319,11.62,Installation of one instance of Mozilla Firefox V17 ESR for one user
Ministry of Justice,MoJ HQ,03/Feb/2014 ,265000-IT & Telecommunications,RC999-Criminal Justice Group - OMS,ATOS IT SERVICES UK LTD,1122319,5.25,3m Cat6 network cable (purple)
Ministry of Justice,MoJ HQ,03/Feb/2014 ,265000-IT & Telecommunications,RC999-Criminal Justice Group - OMS,ATOS IT SERVICES UK LTD,1122319,5.25,3m Cat6 network cable (purple)
Ministry of Justice,MoJ HQ,03/Feb/2014 ,265000-IT & Telecommunications,RC999-Criminal Justice Group - OMS,ATOS IT SERVICES UK LTD,1122319,46.00,Provision and support of Secure Remote Access (RWSII) Capability
Ministry of Justice,MoJ HQ,03/Feb/2014 ,265000-IT & Telecommunications,RC999-Criminal Justice Group - OMS,ATOS IT SERVICES UK LTD,1122319,46.00,Provision and support of Secure Remote Access (RWSII) Capability
Ministry of Justice,MoJ HQ,03/Feb/2014 ,265000-IT & Telecommunications,RC999-Criminal Justice Group - OMS,ATOS IT SERVICES UK LTD,1122319,25.78,New IPT Mobility account with voicemail account 11-20 Accounts
Ministry of Justice,MoJ HQ,03/Feb/2014 ,265000-IT & Telecommunications,RC999-Criminal Justice Group - OMS,ATOS IT SERVICES UK LTD,1122319,11.62,MS Project Professional
Ministry of Justice,MoJ HQ,03/Feb/2014 ,265000-IT & Telecommunications,RC999-Criminal Justice Group - OMS,ATOS IT SERVICES UK LTD,1122319,11.62,MS Visio Professional
Ministry of Justice,MoJ HQ,03/Feb/2014 ,265000-IT & Telecommunications,"RD999-CJG - BDSU, Inspectorates & Ombudsman",ATOS IT SERVICES UK LTD,1122319,46.00,Provision and support of Secure Remote Access (RWSII) Capability
Ministry of Justice,MoJ HQ,03/Feb/2014 ,265000-IT & Telecommunications,"RD999-CJG - BDSU, Inspectorates & Ombudsman",ATOS IT SERVICES UK LTD,1122319,258.33,HP OfficeJet 100 Mobile Printer
Ministry of Justice,MoJ HQ,03/Feb/2014 ,265000-IT & Telecommunications,"RD999-CJG - BDSU, Inspectorates & Ombudsman",ATOS IT SERVICES UK LTD,1122319,21.38,Return unwanted device or broken/faulty device
Ministry of Justice,MoJ HQ,03/Feb/2014 ,265000-IT & Telecommunications,"RD999-CJG - BDSU, Inspectorates & Ombudsman",ATOS IT SERVICES UK LTD,1122319,264.00,"Small Form Laptop - HP EliteBook 2570p (12.1"" screen)"
Ministry of Justice,MoJ HQ,03/Feb/2014 ,265000-IT & Telecommunications,"RD999-CJG - BDSU, Inspectorates & Ombudsman",ATOS IT SERVICES UK LTD,1122319,76.90,"Docking Station for 2540p,2560p and 2570p laptop"
Ministry of Justice,MoJ HQ,03/Feb/2014 ,265000-IT & Telecommunications,"RD999-CJG - BDSU, Inspectorates & Ombudsman",ATOS IT SERVICES UK LTD,1122319,46.00,Provision and support of Secure Remote Access (RWSII) Capability
Ministry of Justice,MoJ HQ,03/Feb/2014 ,265000-IT & Telecommunications,"RD999-CJG - BDSU, Inspectorates & Ombudsman",ATOS IT SERVICES UK LTD,1122319,82.78,BlackBerry (Vodafone)
Ministry of Justice,MoJ HQ,03/Feb/2014 ,265000-IT & Telecommunications,"RD999-CJG - BDSU, Inspectorates & Ombudsman",ATOS IT SERVICES UK LTD,1122319,25.00,USB Extender cable
Ministry of Justice,MoJ HQ,03/Feb/2014 ,265000-IT & Telecommunications,"RD999-CJG - BDSU, Inspectorates & Ombudsman",ATOS IT SERVICES UK LTD,1122319,328.00,Pool Laptop
Ministry of Justice,MoJ HQ,03/Feb/2014 ,265000-IT & Telecommunications,"RD999-CJG - BDSU, Inspectorates & Ombudsman",ATOS IT SERVICES UK LTD,1122319,492.00,Pool Laptop
Ministry of Justice,MoJ HQ,03/Feb/2014 ,265000-IT & Telecommunications,"RD999-CJG - BDSU, Inspectorates & Ombudsman",ATOS IT SERVICES UK LTD,1122319,164.00,Pool Laptop
Ministry of Justice,MoJ HQ,03/Feb/2014 ,265000-IT & Telecommunications,"RD999-CJG - BDSU, Inspectorates & Ombudsman",ATOS IT SERVICES UK LTD,1122319,46.00,Provision and support of Secure Remote Access (RWSII) Capability
Ministry of Justice,MoJ HQ,03/Feb/2014 ,265000-IT & Telecommunications,"RD999-CJG - BDSU, Inspectorates & Ombudsman",ATOS IT SERVICES UK LTD,1122319,46.00,Provision and support of Secure Remote Access (RWSII) Capability
Ministry of Justice,MoJ HQ,03/Feb/2014 ,265000-IT & Telecommunications,"RD999-CJG - BDSU, Inspectorates & Ombudsman",ATOS IT SERVICES UK LTD,1122319,46.00,Provision and support of Secure Remote Access (RWSII) Capability
Ministry of Justice,MoJ HQ,03/Feb/2014 ,265000-IT & Telecommunications,"RD999-CJG - BDSU, Inspectorates & Ombudsman",ATOS IT SERVICES UK LTD,1122319,46.00,Provision and support of Secure Remote Access (RWSII) Capability
Ministry of Justice,MoJ HQ,03/Feb/2014 ,265000-IT & Telecommunications,"RD999-CJG - BDSU, Inspectorates & Ombudsman",ATOS IT SERVICES UK LTD,1122319,46.00,Provision and support of Secure Remote Access (RWSII) Capability
Ministry of Justice,MoJ HQ,03/Feb/2014 ,265000-IT & Telecommunications,"RD999-CJG - BDSU, Inspectorates & Ombudsman",ATOS IT SERVICES UK LTD,1122319,66.86,Return BlackBerry device (no longer required)
Ministry of Justice,MoJ HQ,17/Feb/2014 ,265000-IT & Telecommunications,LZ600-Transforming Justice,ATOS IT SERVICES UK LTD,1123480,"51,897.00",Legal publications for the judiciary and courts
Ministry of Justice,MoJ HQ,03/Feb/2014 ,265000-IT & Telecommunications,LZ600-Transforming Justice,ATOS IT SERVICES UK LTD,1122319,206.65,IT peripherals/individual ordered software and equipment
Ministry of Justice,MoJ HQ,03/Feb/2014 ,265000-IT & Telecommunications,LZ600-Transforming Justice,ATOS IT SERVICES UK LTD,1122319,43.22,IT peripherals/individual ordered software and equipment
Ministry of Justice,MoJ HQ,03/Feb/2014 ,265000-IT & Telecommunications,LZ600-Transforming Justice,ATOS IT SERVICES UK LTD,1122319,265.63,IT peripherals/individual ordered software and equipment
Ministry of Justice,MoJ HQ,03/Feb/2014 ,265000-IT & Telecommunications,LZ600-Transforming Justice,ATOS IT SERVICES UK LTD,1122319,11.62,IT peripherals/individual ordered software and equipment
Ministry of Justice,MoJ HQ,03/Feb/2014 ,265000-IT & Telecommunications,MF600-Directorate of Judicial Offices,ATOS IT SERVICES UK LTD,1122319,25.23,IT peripherals/individual ordered software and equipment
Ministry of Justice,MoJ HQ,03/Feb/2014 ,265000-IT & Telecommunications,MF600-Directorate of Judicial Offices,ATOS IT SERVICES UK LTD,1122319,78.26,IT peripherals/individual ordered software and equipment
Ministry of Justice,MoJ HQ,03/Feb/2014 ,265000-IT & Telecommunications,MF600-Directorate of Judicial Offices,ATOS IT SERVICES UK LTD,1122319,99.88,IT peripherals/individual ordered software and equipment
Ministry of Justice,MoJ HQ,03/Feb/2014 ,265000-IT & Telecommunications,MF600-Directorate of Judicial Offices,ATOS IT SERVICES UK LTD,1122319,46.00,IT peripherals/individual ordered software and equipment
Ministry of Justice,MoJ HQ,03/Feb/2014 ,265000-IT & Telecommunications,OZ501-HRD Feeder,ATOS IT SERVICES UK LTD,1122319,78.26,IT peripherals/individual ordered software and equipment
Ministry of Justice,MoJ HQ,03/Feb/2014 ,265000-IT & Telecommunications,RG999-CFLAP Accumulator,ATOS IT SERVICES UK LTD,1122319,264.00,IT peripherals/individual ordered software and equipment
Ministry of Justice,MoJ HQ,03/Feb/2014 ,265000-IT & Telecommunications,RG999-CFLAP Accumulator,ATOS IT SERVICES UK LTD,1122319,328.00,IT peripherals/individual ordered software and equipment
Ministry of Justice,MoJ HQ,03/Feb/2014 ,265000-IT & Telecommunications,RG999-CFLAP Accumulator,ATOS IT SERVICES UK LTD,1122319,92.00,IT peripherals/individual ordered software and equipment
Ministry of Justice,MoJ HQ,03/Feb/2014 ,265000-IT & Telecommunications,RG999-CFLAP Accumulator,ATOS IT SERVICES UK LTD,1122319,82.78,IT peripherals/individual ordered software and equipment
Ministry of Justice,MoJ HQ,03/Feb/2014 ,265000-IT & Telecommunications,RG999-CFLAP Accumulator,ATOS IT SERVICES UK LTD,1122319,"3,641.40",IT peripherals/individual ordered software and equipment
Ministry of Justice,MoJ HQ,03/Feb/2014 ,265000-IT & Telecommunications,RG999-CFLAP Accumulator,ATOS IT SERVICES UK LTD,1122319,264.00,IT peripherals/individual ordered software and equipment
Ministry of Justice,MoJ HQ,03/Feb/2014 ,265000-IT & Telecommunications,RG999-CFLAP Accumulator,ATOS IT SERVICES UK LTD,1122319,492.00,IT peripherals/individual ordered software and equipment
Ministry of Justice,MoJ HQ,03/Feb/2014 ,265000-IT & Telecommunications,RG999-CFLAP Accumulator,ATOS IT SERVICES UK LTD,1122319,46.00,IT peripherals/individual ordered software and equipment
Ministry of Justice,MoJ HQ,03/Feb/2014 ,265000-IT & Telecommunications,RG999-CFLAP Accumulator,ATOS IT SERVICES UK LTD,1122319,46.00,IT peripherals/individual ordered software and equipment
Ministry of Justice,MoJ HQ,03/Feb/2014 ,265000-IT & Telecommunications,RG999-CFLAP Accumulator,ATOS IT SERVICES UK LTD,1122319,230.00,IT peripherals/individual ordered software and equipment
Ministry of Justice,MoJ HQ,03/Feb/2014 ,265000-IT & Telecommunications,RG999-CFLAP Accumulator,ATOS IT SERVICES UK LTD,1122319,25.78,IT peripherals/individual ordered software and equipment
Ministry of Justice,MoJ HQ,03/Feb/2014 ,265000-IT & Telecommunications,RG999-CFLAP Accumulator,ATOS IT SERVICES UK LTD,1122319,82.78,IT peripherals/individual ordered software and equipment
Ministry of Justice,MoJ HQ,03/Feb/2014 ,265000-IT & Telecommunications,RG999-CFLAP Accumulator,ATOS IT SERVICES UK LTD,1122319,11.62,IT peripherals/individual ordered software and equipment
Ministry of Justice,MoJ HQ,03/Feb/2014 ,265000-IT & Telecommunications,RJ999-JPG - International,ATOS IT SERVICES UK LTD,1122319,46.00,IT peripherals/individual ordered software and equipment
Ministry of Justice,MoJ HQ,03/Feb/2014 ,265000-IT & Telecommunications,RJ999-JPG - International,ATOS IT SERVICES UK LTD,1122319,66.86,IT peripherals/individual ordered software and equipment
Ministry of Justice,MoJ HQ,03/Feb/2014 ,265000-IT & Telecommunications,RJ999-JPG - International,ATOS IT SERVICES UK LTD,1122319,66.86,IT peripherals/individual ordered software and equipment
Ministry of Justice,MoJ HQ,03/Feb/2014 ,265000-IT & Telecommunications,RJ999-JPG - International,ATOS IT SERVICES UK LTD,1122319,82.78,IT peripherals/individual ordered software and equipment
Ministry of Justice,MoJ HQ,03/Feb/2014 ,265000-IT & Telecommunications,RJ999-JPG - International,ATOS IT SERVICES UK LTD,1122319,50.90,IT peripherals/individual ordered software and equipment
Ministry of Justice,MoJ HQ,03/Feb/2014 ,265000-IT & Telecommunications,RZ500-Arms Length Bodies (JPG),ATOS IT SERVICES UK LTD,1122319,282.62,IT peripherals/individual ordered software and equipment
Ministry of Justice,MoJ HQ,03/Feb/2014 ,265000-IT & Telecommunications,RZ500-Arms Length Bodies (JPG),ATOS IT SERVICES UK LTD,1122319,25.78,IT peripherals/individual ordered software and equipment
Ministry of Justice,MoJ HQ,03/Feb/2014 ,265000-IT & Telecommunications,RZ500-Arms Length Bodies (JPG),ATOS IT SERVICES UK LTD,1122319,25.78,IT peripherals/individual ordered software and equipment
Ministry of Justice,MoJ HQ,03/Feb/2014 ,265000-IT & Telecommunications,RZ500-Arms Length Bodies (JPG),ATOS IT SERVICES UK LTD,1122319,25.78,IT peripherals/individual ordered software and equipment
Ministry of Justice,MoJ HQ,03/Feb/2014 ,265000-IT & Telecommunications,RZ500-Arms Length Bodies (JPG),ATOS IT SERVICES UK LTD,1122319,25.78,IT peripherals/individual ordered software and equipment
Ministry of Justice,MoJ HQ,03/Feb/2014 ,265000-IT & Telecommunications,RZ500-Arms Length Bodies (JPG),ATOS IT SERVICES UK LTD,1122319,25.78,IT peripherals/individual ordered software and equipment
Ministry of Justice,MoJ HQ,03/Feb/2014 ,265000-IT & Telecommunications,RZ500-Arms Length Bodies (JPG),ATOS IT SERVICES UK LTD,1122319,25.78,IT peripherals/individual ordered software and equipment
Ministry of Justice,MoJ HQ,03/Feb/2014 ,265000-IT & Telecommunications,RZ500-Arms Length Bodies (JPG),ATOS IT SERVICES UK LTD,1122319,25.78,IT peripherals/individual ordered software and equipment
Ministry of Justice,MoJ HQ,03/Feb/2014 ,265000-IT & Telecommunications,RZ500-Arms Length Bodies (JPG),ATOS IT SERVICES UK LTD,1122319,25.78,IT peripherals/individual ordered software and equipment
Ministry of Justice,MoJ HQ,03/Feb/2014 ,265000-IT & Telecommunications,RZ500-Arms Length Bodies (JPG),ATOS IT SERVICES UK LTD,1122319,25.78,IT peripherals/individual ordered software and equipment
Ministry of Justice,MoJ HQ,03/Feb/2014 ,265000-IT & Telecommunications,RZ500-Arms Length Bodies (JPG),ATOS IT SERVICES UK LTD,1122319,66.86,IT peripherals/individual ordered software and equipment
Ministry of Justice,MoJ HQ,03/Feb/2014 ,265000-IT & Telecommunications,RZ500-Arms Length Bodies (JPG),ATOS IT SERVICES UK LTD,1122319,11.62,IT peripherals/individual ordered software and equipment
Ministry of Justice,MoJ HQ,03/Feb/2014 ,265000-IT & Telecommunications,RZ500-Arms Length Bodies (JPG),ATOS IT SERVICES UK LTD,1122319,11.62,IT peripherals/individual ordered software and equipment
Ministry of Justice,MoJ HQ,20/Feb/2014 ,265000-IT & Telecommunications,NZ900-Finance & Corporate Services,BMT HI-Q SIGMA LTD,1123793,"30,525.00","Architecture support including production of technical reports, roadmaps, diagrams, portfolio catalogues, system/organisation matrix etc"
Ministry of Justice,MoJ HQ,20/Feb/2014 ,265000-IT & Telecommunications,NZ900-Finance & Corporate Services,BMT HI-Q SIGMA LTD,1123793,"6,105.00","Architecture support including production of technical reports, roadmaps, diagrams, portfolio catalogues, system/organisation matrix etc"
Ministry of Justice,MoJ HQ,06/Feb/2014 ,266000-Judicial Costs,MF600-Directorate of Judicial Offices,CALDER CONFERENCES LTD,1122613,"20,619.37","Hire of Scarman Training and Conference Centre for Civil Law Seminar 6 on 20-21 Nov 2013 covering accommodation, catering and other costs relating to Judicial Training"
Ministry of Justice,MoJ HQ,06/Feb/2014 ,266000-Judicial Costs,MF600-Directorate of Judicial Offices,CALDER CONFERENCES LTD,1122613,"6,320.79",Hire of Scarman Training and Conference Centre for Civil Law Seminar 6 on 20-21 Nov 2013
Ministry of Justice,MoJ HQ,17/Feb/2014 ,266000-Judicial Costs,MF600-Directorate of Judicial Offices,CALDER CONFERENCES LTD,1123505,"21,256.18","The cost to hire Highgate House to hold a Family Private Law Children Seminar from 13-14 Jan 2014, covering accommodation, catering and other costs relating to Judicial Training"
Ministry of Justice,MoJ HQ,17/Feb/2014 ,266000-Judicial Costs,MF600-Directorate of Judicial Offices,CALDER CONFERENCES LTD,1123505,"2,068.21",The cost to hire Highgate House to hold a Family Private Law Children Seminar from 13-14 Jan 2014
Ministry of Justice,MoJ HQ,10/Feb/2014 ,266000-Judicial Costs,MF600-Directorate of Judicial Offices,CALDER CONFERENCES LTD,1122920,"22,556.83","The cost to hire Highgate House to hold a Family Money Seminar from 15-16 Jan 2014, covering accommodation, catering and other costs relating to Judicial Training"
Ministry of Justice,MoJ HQ,10/Feb/2014 ,266000-Judicial Costs,MF600-Directorate of Judicial Offices,CALDER CONFERENCES LTD,1122920,539.78,The cost to hire Highgate House to hold a Family Money Seminar from 15-16 Jan 2014 
Ministry of Justice,MoJ HQ,20/Feb/2014 ,266000-Judicial Costs,MF600-Directorate of Judicial Offices,CALDER CONFERENCES LTD,1123805,"22,159.26","The cost to hire Highgate House to hold a Family Public Law Seminar from 3-4 Feb 2014, covering accommodation, catering and other costs relating to Judicial Training"
Ministry of Justice,MoJ HQ,20/Feb/2014 ,266000-Judicial Costs,MF600-Directorate of Judicial Offices,CALDER CONFERENCES LTD,1123805,"1,223.11",The cost to hire Highgate House to hold a Family Public Law Seminar from 3-4 Feb 2014
Ministry of Justice,MoJ HQ,27/Feb/2014 ,266000-Judicial Costs,MF600-Directorate of Judicial Offices,CALDER CONFERENCES LTD,1124340,"29,468.13","The cost to hire Scarman Training and Conference Centre to hold a 3 day Induction (Judicial Training) event from 14th to 16th January 2014 for new Tribunal Judges within the SSCS Tribunal  covering accommodation, catering and other costs relating to Judicial Training Conferences"
Ministry of Justice,MoJ HQ,27/Feb/2014 ,266000-Judicial Costs,MF600-Directorate of Judicial Offices,CALDER CONFERENCES LTD,1124340,"2,488.57","The cost to hire Scarman Training and Conference Centre to hold a 3 day Induction (Judicial Training) event from 14th to 16th January 2014 for new Tribunal Judges within the SSCS Tribunal  covering accommodation, catering and other costs relating to Judicial Training Conferences"
Ministry of Justice,MoJ HQ,27/Feb/2014 ,266000-Judicial Costs,MF600-Directorate of Judicial Offices,CALDER CONFERENCES LTD,1124340,"34,744.03","Conference venue, accommodation, catering and other costs relating to Judicial Training Conferences"
Ministry of Justice,MoJ HQ,27/Feb/2014 ,266000-Judicial Costs,MF600-Directorate of Judicial Offices,CALDER CONFERENCES LTD,1124340,"34,350.07","The cost to hire Burleigh Court Loughborough Conference venue to hold a 3 day Induction (Judicial Training) event from 4th to 6th February 2014 for new Tribunal Judges within the SSCS Tribunal  covering accommodation, catering and other costs relating to Judicial Training Conferences"
Ministry of Justice,MoJ HQ,24/Feb/2014 ,212001-Agency staff,QY200-OU10 Billback,CAPITA BUSINESS SERVICES LTD,1124105,"108,191.30",Agency staff
Ministry of Justice,MoJ HQ,24/Feb/2014 ,212001-Agency staff,QY200-OU10 Billback,CAPITA BUSINESS SERVICES LTD,1124105,"21,638.26",Agency staff
Ministry of Justice,MoJ HQ,03/Feb/2014 ,212001-Agency staff,QY200-OU10 Billback,CAPITA BUSINESS SERVICES LTD,1122345,"99,823.89",Agency staff
Ministry of Justice,MoJ HQ,03/Feb/2014 ,212001-Agency staff,QY200-OU10 Billback,CAPITA BUSINESS SERVICES LTD,1122345,"19,964.78",Agency staff
Ministry of Justice,MoJ HQ,10/Feb/2014 ,212001-Agency staff,QY200-OU10 Billback,CAPITA BUSINESS SERVICES LTD,1122922,"112,334.30",Agency staff
Ministry of Justice,MoJ HQ,10/Feb/2014 ,212001-Agency staff,QY200-OU10 Billback,CAPITA BUSINESS SERVICES LTD,1122922,"22,466.86",Agency staff
Ministry of Justice,MoJ HQ,17/Feb/2014 ,212001-Agency staff,QY200-OU10 Billback,CAPITA BUSINESS SERVICES LTD,1123509,"131,392.03",Agency staff
Ministry of Justice,MoJ HQ,17/Feb/2014 ,212001-Agency staff,QY200-OU10 Billback,CAPITA BUSINESS SERVICES LTD,1123509,"26,278.41",Agency staff
Ministry of Justice,MoJ HQ,27/Feb/2014 ,212001-Agency staff,LZ600-Transforming Justice,CAPITA RESOURCING LTD,1124343,"27,945.00",CIPHERL00780 -Industry consultant advising Programme Director
Ministry of Justice,MoJ HQ,27/Feb/2014 ,212001-Agency staff,LZ600-Transforming Justice,CAPITA RESOURCING LTD,1124343,"5,589.00",CIPHERL00780 -Industry consultant advising Programme Director
Ministry of Justice,MoJ HQ,05/Feb/2014 ,245000-Grants in Aid to NDPBs,KY340-Access to Justice Delivery,CCRC (CRIMINAL CASES REVIEW COMMISSION),4090,"450,000.00",Monthly Grant in Aid payment to CCRC (January) 
Ministry of Justice,MoJ HQ,06/Feb/2014 ,245000-Grants in Aid to NDPBs,KY340-Access to Justice Delivery,CCRC (CRIMINAL CASES REVIEW COMMISSION),4095,"50,000.00",Monthly Grant in Aid January adjustment 
Ministry of Justice,MoJ HQ,03/Feb/2014 ,265000-IT & Telecommunications,NZ900-Finance & Corporate Services,CGI IT UK LTD,1122352,"8,162.40",Equal and opposite entry exists to cancel
Ministry of Justice,MoJ HQ,03/Feb/2014 ,265000-IT & Telecommunications,NZ900-Finance & Corporate Services,CGI IT UK LTD,1122352,"-8,162.40",Equal and opposite entry exists to cancel
Ministry of Justice,MoJ HQ,03/Feb/2014 ,265000-IT & Telecommunications,NZ900-Finance & Corporate Services,CGI IT UK LTD,1122352,"40,812.00",Agile Coaching and development services for HMCTS Common Platform Programme from 3rd September 2013 to 3rd March 2014)
Ministry of Justice,MoJ HQ,03/Feb/2014 ,265000-IT & Telecommunications,NZ900-Finance & Corporate Services,CGI IT UK LTD,1122352,"8,162.40",Agile Coaching and development services for HMCTS Common Platform Programme from 3rd September 2013 to 3rd March 2014)
Ministry of Justice,MoJ HQ,03/Feb/2014 ,265000-IT & Telecommunications,NZ900-Finance & Corporate Services,CGI IT UK LTD,1122352,"8,162.40",Equal and opposite entry exists to cancel
Ministry of Justice,MoJ HQ,03/Feb/2014 ,265000-IT & Telecommunications,NZ900-Finance & Corporate Services,CGI IT UK LTD,1122352,"-8,162.40",Equal and opposite entry exists to cancel
Ministry of Justice,MoJ HQ,03/Feb/2014 ,265000-IT & Telecommunications,NZ900-Finance & Corporate Services,CGI IT UK LTD,1122352,"40,812.00",Agile Coaching and development services for HMCTS Common Platform Programme from 3rd September 2013 to 3rd March 2014)
Ministry of Justice,MoJ HQ,03/Feb/2014 ,265000-IT & Telecommunications,NZ900-Finance & Corporate Services,CGI IT UK LTD,1122352,"8,162.40",Agile Coaching and development services for HMCTS Common Platform Programme from 3rd September 2013 to 3rd March 2014)
Ministry of Justice,MoJ HQ,03/Feb/2014 ,265000-IT & Telecommunications,NZ900-Finance & Corporate Services,CGI IT UK LTD,1122352,"4,701.20",Equal and opposite entry exists to cancel
Ministry of Justice,MoJ HQ,03/Feb/2014 ,265000-IT & Telecommunications,NZ900-Finance & Corporate Services,CGI IT UK LTD,1122352,"-4,701.20",Equal and opposite entry exists to cancel
Ministry of Justice,MoJ HQ,03/Feb/2014 ,265000-IT & Telecommunications,NZ900-Finance & Corporate Services,CGI IT UK LTD,1122352,"23,506.00",Agile Coaching and development services for HMCTS Common Platform Programme from 3rd September 2013 to 3rd March 2014)
Ministry of Justice,MoJ HQ,03/Feb/2014 ,265000-IT & Telecommunications,NZ900-Finance & Corporate Services,CGI IT UK LTD,1122352,"4,701.20",Agile Coaching and development services for HMCTS Common Platform Programme from 3rd September 2013 to 3rd March 2014)
Ministry of Justice,MoJ HQ,03/Feb/2014 ,265000-IT & Telecommunications,NZ900-Finance & Corporate Services,CGI IT UK LTD,1122352,"8,162.40",Equal and opposite entry exists to cancel
Ministry of Justice,MoJ HQ,03/Feb/2014 ,265000-IT & Telecommunications,NZ900-Finance & Corporate Services,CGI IT UK LTD,1122352,"-8,162.40",Equal and opposite entry exists to cancel
Ministry of Justice,MoJ HQ,03/Feb/2014 ,265000-IT & Telecommunications,NZ900-Finance & Corporate Services,CGI IT UK LTD,1122352,"40,812.00",Agile Coaching and development services for HMCTS Common Platform Programme from 3rd September 2013 to 3rd March 2014)
Ministry of Justice,MoJ HQ,03/Feb/2014 ,265000-IT & Telecommunications,NZ900-Finance & Corporate Services,CGI IT UK LTD,1122352,"8,162.40",Agile Coaching and development services for HMCTS Common Platform Programme from 3rd September 2013 to 3rd March 2014)
Ministry of Justice,MoJ HQ,03/Feb/2014 ,265000-IT & Telecommunications,NZ900-Finance & Corporate Services,CGI IT UK LTD,1122352,"40,812.00",Agile Coaching and development services for HMCTS Common Platform Programme from 3rd September 2013 to 3rd March 2014)
Ministry of Justice,MoJ HQ,03/Feb/2014 ,265000-IT & Telecommunications,NZ900-Finance & Corporate Services,CGI IT UK LTD,1122352,"8,162.40",Agile Coaching and development services for HMCTS Common Platform Programme from 3rd September 2013 to 3rd March 2014)
Ministry of Justice,MoJ HQ,03/Feb/2014 ,265000-IT & Telecommunications,NZ900-Finance & Corporate Services,CGI IT UK LTD,1122352,"40,812.00",Agile Coaching and development services for HMCTS Common Platform Programme from 3rd September 2013 to 3rd March 2014)
Ministry of Justice,MoJ HQ,03/Feb/2014 ,265000-IT & Telecommunications,NZ900-Finance & Corporate Services,CGI IT UK LTD,1122352,"8,162.40",Agile Coaching and development services for HMCTS Common Platform Programme from 3rd September 2013 to 3rd March 2014)
Ministry of Justice,MoJ HQ,17/Feb/2014 ,265000-IT & Telecommunications,NZ900-Finance & Corporate Services,CGI IT UK LTD,1123517,"86,049.00",Agile Coaching and development services for HMCTS Common Platform Programme from 3rd September 2013 to 3rd March 2014)
Ministry of Justice,MoJ HQ,17/Feb/2014 ,265000-IT & Telecommunications,NZ900-Finance & Corporate Services,CGI IT UK LTD,1123517,"17,209.80",Agile Coaching and development services for HMCTS Common Platform Programme from 3rd September 2013 to 3rd March 2014)
Ministry of Justice,MoJ HQ,24/Feb/2014 ,265000-IT & Telecommunications,NZ900-Finance & Corporate Services,CGI IT UK LTD,1124108,"21,091.00",IT Support delivery .
Ministry of Justice,MoJ HQ,24/Feb/2014 ,265000-IT & Telecommunications,NZ900-Finance & Corporate Services,CGI IT UK LTD,1124108,"117,253.42",ICT Application Maintenance & Support
Ministry of Justice,MoJ HQ,03/Feb/2014 ,245000-Grants in Aid to NDPBs,KY340-Access to Justice Delivery,CICA (CRIMINAL INJURIES COMPENSATION AUTHORITY),4067,"15,000,000.00",Grant-In-Aid
Ministry of Justice,MoJ HQ,26/Feb/2014 ,246000-Current Grants,RJ999-JPG - International,COUNCIL OF EUROPE,13808,"86,000.00",A ?grant-in-aid? payment from the MOJ to the Council of Europe
Ministry of Justice,MoJ HQ,12/Feb/2014 ,221000-Property Rent and Rates,NZ406-Strategic Estates Feeder,DEPARTMENT FOR COMMUNITIES & LOCAL GOVERNMENT,4125,"170,050.97",Quarterly Rent & Rates for St Philips Place
Ministry of Justice,MoJ HQ,03/Feb/2014 ,265000-IT & Telecommunications,NZ900-Finance & Corporate Services,DETICA LTD,1122368,"105,700.00",IT Information Assurance Services
Ministry of Justice,MoJ HQ,03/Feb/2014 ,265000-IT & Telecommunications,NZ900-Finance & Corporate Services,DETICA LTD,1122368,"105,130.00",IT Risk Assessment and support
Ministry of Justice,MoJ HQ,03/Feb/2014 ,265000-IT & Telecommunications,NZ900-Finance & Corporate Services,DETICA LTD,1122368,"21,140.00",IT Information Assurance Services
Ministry of Justice,MoJ HQ,03/Feb/2014 ,265000-IT & Telecommunications,NZ900-Finance & Corporate Services,DETICA LTD,1122368,"21,026.00",IT Risk Assessment and support
Ministry of Justice,MoJ HQ,03/Feb/2014 ,265000-IT & Telecommunications,NZ900-Finance & Corporate Services,DETICA LTD,1122368,"117,483.90",IT Risk Assessment and supporting services
Ministry of Justice,MoJ HQ,03/Feb/2014 ,265000-IT & Telecommunications,NZ900-Finance & Corporate Services,DETICA LTD,1122368,"54,835.35",IT Information Assurance Services
Ministry of Justice,MoJ HQ,03/Feb/2014 ,265000-IT & Telecommunications,NZ900-Finance & Corporate Services,DETICA LTD,1122368,"10,967.07",IT Information Assurance Services
Ministry of Justice,MoJ HQ,03/Feb/2014 ,265000-IT & Telecommunications,NZ900-Finance & Corporate Services,DETICA LTD,1122368,"23,496.78",IT Risk Assessments Services
Ministry of Justice,MoJ HQ,13/Feb/2014 ,264000-Consultancy,RG999-CFLAP Accumulator,DR WILLIAM LAWLER,1123209,"30,000.00",Police expert to provide advice on Inquests
Ministry of Justice,MoJ HQ,06/Feb/2014 ,263000-Other Contracted Out Services,RC999-Criminal Justice Group - OMS,ECD (COOKHAM WOOD) LTD,1122658,"995,330.66",Supplier is contracted to run a secure training centre which forms part of the juvenile secure estate for Medway
Ministry of Justice,MoJ HQ,20/Feb/2014 ,263000-Other Contracted Out Services,RC999-Criminal Justice Group - OMS,ECD (COOKHAM WOOD) LTD,1123856,"995,225.10",Supplier is contracted to run a secure training centre which forms part of the juvenile secure estate for Medway
Ministry of Justice,MoJ HQ,20/Feb/2014 ,263000-Other Contracted Out Services,RC999-Criminal Justice Group - OMS,ECD (ONLEY) LTD,1123857,"1,324,175.50",Supplier is contracted to run a secure training centre which forms part of the juvenile secure estate.
Ministry of Justice,MoJ HQ,03/Feb/2014 ,265000-IT & Telecommunications,LZ600-Transforming Justice,ENGINE PARTNERS LLP,1122378,"40,625.00","Maintain and support the delivered LPA system including transference of technical knowledge, bug fixing and system improvements"
Ministry of Justice,MoJ HQ,06/Feb/2014 ,264000-Consultancy,NZ900-Finance & Corporate Services,ERNST & YOUNG LLP,1122661,"56,754.50",A flexible Managed PMO Service for the Future IT Sourcing programme (FITS)
Ministry of Justice,MoJ HQ,06/Feb/2014 ,264000-Consultancy,NZ900-Finance & Corporate Services,ERNST & YOUNG LLP,1122661,"11,350.90",A flexible Managed PMO Service for the Future IT Sourcing programme (FITS)
Ministry of Justice,MoJ HQ,13/Feb/2014 ,611000-Debtors <1 year - Other Debtors,WW000-Balance Sheet,ERNST & YOUNG LLP,1123217,"328,733.00",REPAYMENT OF REFUND IN RESPECT OF ERNST & YOUNG ICT TRANSFORMATION CONSULTANCY SERVICES
Ministry of Justice,MoJ HQ,27/Feb/2014 ,264000-Consultancy,LZ600-Transforming Justice,ERNST & YOUNG LLP,1124377,"80,320.00",Work done to date on the Rehab programme. Contract ITT 651 RM2764 - Business and System Readiness
Ministry of Justice,MoJ HQ,20/Feb/2014 ,264000-Consultancy,LZ600-Transforming Justice,ERNST & YOUNG LLP,1123863,"423,150.00",Work done to date on the Rehab programme. Contract ITT 651 RM2764 - Business and System Readiness
Ministry of Justice,MoJ HQ,06/Feb/2014 ,264000-Consultancy,LZ600-Transforming Justice,ERNST & YOUNG LLP,1122661,"436,774.82","""To provide consultancy to the Rehabilitation Programme: HR transition set up,  shadow bid, set up delivery centre"""
Ministry of Justice,MoJ HQ,20/Feb/2014 ,265000-IT & Telecommunications,NZ900-Finance & Corporate Services,FUJITSU SERVICES LTD,1123877,"46,935.57",Fujitsu Service Integration And Management Services
Ministry of Justice,MoJ HQ,20/Feb/2014 ,265000-IT & Telecommunications,NZ900-Finance & Corporate Services,FUJITSU SERVICES LTD,1123877,"34,517.33",Fujitsu Service Integration And Management Services
Ministry of Justice,MoJ HQ,20/Feb/2014 ,265000-IT & Telecommunications,NZ900-Finance & Corporate Services,FUJITSU SERVICES LTD,1123877,"311,088.56",Fujitsu Service Integration And Management Services
Ministry of Justice,MoJ HQ,20/Feb/2014 ,265000-IT & Telecommunications,NZ900-Finance & Corporate Services,FUJITSU SERVICES LTD,1123877,"144,796.79",Fujitsu Service Integration And Management Services
Ministry of Justice,MoJ HQ,20/Feb/2014 ,265000-IT & Telecommunications,NZ900-Finance & Corporate Services,FUJITSU SERVICES LTD,1123877,"72,873.99",Fujitsu Service Integration And Management Services
Ministry of Justice,MoJ HQ,17/Feb/2014 ,265000-IT & Telecommunications,NZ900-Finance & Corporate Services,FUJITSU SERVICES LTD,1123565,"36,551.38",IT Licences
Ministry of Justice,MoJ HQ,20/Feb/2014 ,265000-IT & Telecommunications,NZ900-Finance & Corporate Services,FUJITSU SERVICES LTD,1123877,"36,551.38",IT Licences
Ministry of Justice,MoJ HQ,20/Feb/2014 ,265000-IT & Telecommunications,NZ900-Finance & Corporate Services,FUJITSU SERVICES LTD,1123877,"180,729.93",IT Licences
Ministry of Justice,MoJ HQ,20/Feb/2014 ,265000-IT & Telecommunications,NZ900-Finance & Corporate Services,FUJITSU SERVICES LTD,1123877,"34,906.33",Fujitsu Security Services
Ministry of Justice,MoJ HQ,17/Feb/2014 ,265000-IT & Telecommunications,NZ900-Finance & Corporate Services,FUJITSU SERVICES LTD,1123565,"40,178.05",Youth Justice Board Connectivity Support (Aug 13 to Jul14) 
Ministry of Justice,MoJ HQ,17/Feb/2014 ,265000-IT & Telecommunications,NZ900-Finance & Corporate Services,FUJITSU SERVICES LTD,1123565,"8,035.61",Youth Justice Board Connectivity Support (Aug 13 to Jul14) 
Ministry of Justice,MoJ HQ,17/Feb/2014 ,265000-IT & Telecommunications,NZ900-Finance & Corporate Services,FUJITSU SERVICES LTD,1123565,"40,178.05",Youth Justice Board Connectivity Support (Aug 13 to Jul14) 
Ministry of Justice,MoJ HQ,17/Feb/2014 ,265000-IT & Telecommunications,NZ900-Finance & Corporate Services,FUJITSU SERVICES LTD,1123565,"8,035.61",Youth Justice Board Connectivity Support (Aug 13 to Jul14) 
Ministry of Justice,MoJ HQ,17/Feb/2014 ,265000-IT & Telecommunications,NZ900-Finance & Corporate Services,FUJITSU SERVICES LTD,1123565,"40,178.05",Youth Justice Board Connectivity Support (Aug 13 to Jul14) 
Ministry of Justice,MoJ HQ,17/Feb/2014 ,265000-IT & Telecommunications,NZ900-Finance & Corporate Services,FUJITSU SERVICES LTD,1123565,"8,035.61",Youth Justice Board Connectivity Support (Aug 13 to Jul14) 
Ministry of Justice,MoJ HQ,17/Feb/2014 ,265000-IT & Telecommunications,NZ900-Finance & Corporate Services,FUJITSU SERVICES LTD,1123565,"40,178.05",Youth Justice Board Connectivity Support (Aug 13 to Jul14) 
Ministry of Justice,MoJ HQ,17/Feb/2014 ,265000-IT & Telecommunications,NZ900-Finance & Corporate Services,FUJITSU SERVICES LTD,1123565,"8,035.61",Youth Justice Board Connectivity Support (Aug 13 to Jul14) 
Ministry of Justice,MoJ HQ,17/Feb/2014 ,265000-IT & Telecommunications,NZ900-Finance & Corporate Services,FUJITSU SERVICES LTD,1123565,"40,178.05",Youth Justice Board Connectivity Support (Aug 13 to Jul14) 
Ministry of Justice,MoJ HQ,17/Feb/2014 ,265000-IT & Telecommunications,NZ900-Finance & Corporate Services,FUJITSU SERVICES LTD,1123565,"8,035.61",Youth Justice Board Connectivity Support (Aug 13 to Jul14) 
Ministry of Justice,MoJ HQ,17/Feb/2014 ,265000-IT & Telecommunications,NZ900-Finance & Corporate Services,FUJITSU SERVICES LTD,1123565,"40,178.05",Youth Justice Board Connectivity Support (Aug 13 to Jul14) 
Ministry of Justice,MoJ HQ,17/Feb/2014 ,265000-IT & Telecommunications,NZ900-Finance & Corporate Services,FUJITSU SERVICES LTD,1123565,"8,035.61",Youth Justice Board Connectivity Support (Aug 13 to Jul14) 
Ministry of Justice,MoJ HQ,20/Feb/2014 ,223000-Other Expenditure,LZ600-Transforming Justice,HARWELL DOCUMENT RESTORATION SERVICES,1123897,"88,737.50",Monthly 'storage' and 'activity' costs for paper records stored by TNT on MoJ's behalf at its secure repositories.
Ministry of Justice,MoJ HQ,06/Feb/2014 ,265000-IT & Telecommunications,NZ900-Finance & Corporate Services,HEWLETT PACKARD LTD,1122706,"21,653.04",Extension of HP Loadrunner Licences 01/12/13-31/03/15
Ministry of Justice,MoJ HQ,06/Feb/2014 ,265000-IT & Telecommunications,NZ900-Finance & Corporate Services,HEWLETT PACKARD LTD,1122706,"4,330.61",Extension of HP Loadrunner Licences 01/12/13-31/03/15
Ministry of Justice,MoJ HQ,17/Feb/2014 ,710600-Creditor < 1 year - Payable to Consolidated Fund,WW000-Balance Sheet,HM TREASURY - CFER PAYOVER,4138,"48,548.58","Balance sheet payments to CFERS (Consolidated Fund Extra Receipts), which refers to income received by the Department but must be returned to the consolidated fund in the estimate"
Ministry of Justice,MoJ HQ,17/Feb/2014 ,710600-Creditor < 1 year - Payable to Consolidated Fund,WW000-Balance Sheet,HM TREASURY - CFER PAYOVER,4138,"6,489.35","Balance sheet payments to CFERS (Consolidated Fund Extra Receipts), which refers to income received by the Department but must be returned to the consolidated fund in the estimate"
Ministry of Justice,MoJ HQ,14/Feb/2014 ,265000-IT & Telecommunications,NZ900-Finance & Corporate Services,HMRC,4132,"50,666.00",Funding for taking Control of Goods Act
Ministry of Justice,MoJ HQ,11/Feb/2014 ,265000-IT & Telecommunications,NZ406-Strategic Estates Feeder,HOME OFFICE,4120,"66,570.24",Install IT Network infrastructure; move 130 workstations & decommission old networkand telephony and initial service charge for enabling works
Ministry of Justice,MoJ HQ,21/Feb/2014 ,512000-Intangible GBV - Additions,NZ900-Finance & Corporate Services,HOME OFFICE,4171,"804,984.27","Home Office Testing Services - Test Team Services 1/10/12 to 31/3/13: Interim & Addditional payment, Admin Charge & Admin Fee"
Ministry of Justice,MoJ HQ,06/Feb/2014 ,512000-Intangible GBV - Additions,NX900-MOJ Shared Services,HP ENTERPRISE SERVICES UK LTD,1122713,"467,249.55",Computer Services
Ministry of Justice,MoJ HQ,13/Feb/2014 ,265000-IT & Telecommunications,NZ900-Finance & Corporate Services,HP ENTERPRISE SERVICES UK LTD,1123266,"1,576,517.87",Computer Desktop Services
Ministry of Justice,MoJ HQ,13/Feb/2014 ,265000-IT & Telecommunications,NZ900-Finance & Corporate Services,HP ENTERPRISE SERVICES UK LTD,1123266,"582,113.40",HP National Offenders Management Services - IT Network Services
Ministry of Justice,MoJ HQ,06/Feb/2014 ,265000-IT & Telecommunications,NZ900-Finance & Corporate Services,HP ENTERPRISE SERVICES UK LTD,1122713,"36,590.13",HP National Offenders Management Services - IT Network Services
Ministry of Justice,MoJ HQ,13/Feb/2014 ,265000-IT & Telecommunications,NZ900-Finance & Corporate Services,HP ENTERPRISE SERVICES UK LTD,1123266,"582,113.40",HP National Offenders Management Services - IT Network Services
Ministry of Justice,MoJ HQ,13/Feb/2014 ,265000-IT & Telecommunications,NZ900-Finance & Corporate Services,HP ENTERPRISE SERVICES UK LTD,1123266,"391,473.38",HP National Offenders Management Services - IT Service Integration and Management
Ministry of Justice,MoJ HQ,13/Feb/2014 ,265000-IT & Telecommunications,NZ900-Finance & Corporate Services,HP ENTERPRISE SERVICES UK LTD,1123266,"171,520.70",HP National Offenders Management Services - IT Service Integration and Management
Ministry of Justice,MoJ HQ,13/Feb/2014 ,265000-IT & Telecommunications,NZ900-Finance & Corporate Services,HP ENTERPRISE SERVICES UK LTD,1123266,"1,240,539.03",HP National Offenders Management Services - IT Application Maintenance and support
Ministry of Justice,MoJ HQ,03/Feb/2014 ,265000-IT & Telecommunications,NZ900-Finance & Corporate Services,HP ENTERPRISE SERVICES UK LTD,1122410,"724,472.92",HP National Offenders Application Management Services - IT Telephony
Ministry of Justice,MoJ HQ,03/Feb/2014 ,265000-IT & Telecommunications,NZ900-Finance & Corporate Services,HP ENTERPRISE SERVICES UK LTD,1122410,"144,894.58",HP National Offenders Application Management Services - IT Telephony
Ministry of Justice,MoJ HQ,06/Feb/2014 ,265000-IT & Telecommunications,NZ900-Finance & Corporate Services,HP ENTERPRISE SERVICES UK LTD,1122713,"67,546.29",HP National Offenders Application Management Services - IT Telephony
Ministry of Justice,MoJ HQ,06/Feb/2014 ,265000-IT & Telecommunications,NZ900-Finance & Corporate Services,HP ENTERPRISE SERVICES UK LTD,1122713,"13,509.26",HP National Offenders Application Management Services - IT Telephony
Ministry of Justice,MoJ HQ,13/Feb/2014 ,265000-IT & Telecommunications,NZ900-Finance & Corporate Services,HP ENTERPRISE SERVICES UK LTD,1123266,"194,309.23",HP National Offenders Application Management Services - IT General charges
Ministry of Justice,MoJ HQ,13/Feb/2014 ,265000-IT & Telecommunications,NZ900-Finance & Corporate Services,HP ENTERPRISE SERVICES UK LTD,1123266,"395,165.58",HP National Offenders Application Management Services - IT General charges
Ministry of Justice,MoJ HQ,13/Feb/2014 ,265000-IT & Telecommunications,NZ900-Finance & Corporate Services,HP ENTERPRISE SERVICES UK LTD,1123266,"230,962.36",HP National Offenders Application Management Services - IT Security
Ministry of Justice,MoJ HQ,06/Feb/2014 ,512000-Intangible GBV - Additions,NZ900-Finance & Corporate Services,HP ENTERPRISE SERVICES UK LTD,1122713,"214,822.66",Development of Live Service Bundle 9 application software for Prison-NOMIS
Ministry of Justice,MoJ HQ,06/Feb/2014 ,512000-Intangible GBV - Additions,NZ900-Finance & Corporate Services,HP ENTERPRISE SERVICES UK LTD,1122713,"71,168.06",National Offenders Management Service Mercury  system development and implementation costs for 13/14
Ministry of Justice,MoJ HQ,20/Feb/2014 ,265000-IT & Telecommunications,LZ600-Transforming Justice,HP ENTERPRISE SERVICES UK LTD,1123909,"81,111.07",Rehabilitation Programme TR March 2014 Deliverables Phase 1   RFS9095-02 (v2.0) 
Ministry of Justice,MoJ HQ,13/Feb/2014 ,265000-IT & Telecommunications,NZ900-Finance & Corporate Services,IBM (UNITED KINGDOM) LTD,1123269,"27,064.71",Service Suite Data Powers support
Ministry of Justice,MoJ HQ,13/Feb/2014 ,265000-IT & Telecommunications,NZ900-Finance & Corporate Services,IBM (UNITED KINGDOM) LTD,1123269,"5,412.94",Service Suite Data Powers support
Ministry of Justice,MoJ HQ,13/Feb/2014 ,265000-IT & Telecommunications,NZ900-Finance & Corporate Services,IBM (UNITED KINGDOM) LTD,1123269,0.02,N/A
Ministry of Justice,MoJ HQ,05/Feb/2014 ,245000-Grants in Aid to NDPBs,KY340-Access to Justice Delivery,JUDICIAL APPOINTMENTS COMMISSION (JAC),4093,"817,000.00",A ?grant-in-aid? payment from the MOJ to the Judicial Appointments Commission
Ministry of Justice,MoJ HQ,17/Feb/2014 ,264000-Consultancy,LZ600-Transforming Justice,KPMG,1123615,"408,067.00",Financial advisory (including Challenge the PayMech)
Ministry of Justice,MoJ HQ,17/Feb/2014 ,264000-Consultancy,LZ600-Transforming Justice,KPMG,1123615,"406,868.00",Financial advisory (including Challenge the PayMech)
Ministry of Justice,MoJ HQ,06/Feb/2014 ,222002-Other Property Costs,NZ406-Strategic Estates Feeder,LANCASTER CLEANING AND SUPPORT SERVICES,1122732,"90,579.90",102 Petty Services Cleaning Services 2013/14
Ministry of Justice,MoJ HQ,06/Feb/2014 ,262000-SCA Costs,NZ406-Strategic Estates Feeder,LAND SECURITIES PROPERTIES LTD,1122733,"3,840,116.50","102 Petty France , London Lease Payment"
Ministry of Justice,MoJ HQ,03/Feb/2014 ,912200-Other Movements in Year,KY300-Legal Services Strategy,LEGAL AID AGENCY (LAA),4073,"77,231,000.00",Legal Aid Funding
Ministry of Justice,MoJ HQ,10/Feb/2014 ,912200-Other Movements in Year,KY300-Legal Services Strategy,LEGAL AID AGENCY (LAA),4115,"23,420,000.00",Legal Aid Funding
Ministry of Justice,MoJ HQ,17/Feb/2014 ,912200-Other Movements in Year,KY300-Legal Services Strategy,LEGAL AID AGENCY (LAA),4141,"23,170,000.00",Legal Aid Funding
Ministry of Justice,MoJ HQ,24/Feb/2014 ,912200-Other Movements in Year,KY300-Legal Services Strategy,LEGAL AID AGENCY (LAA),4177,"22,427,000.00",Legal Aid Funding
Ministry of Justice,MoJ HQ,27/Feb/2014 ,263000-Other Contracted Out Services,OZ501-HRD Feeder,LEGAL AND GENERAL INVESTMENT MANAGEMENT LTD,1124436,"34,632.92",Third party administration actuarial services and investment advice in respect of the Legal Aid Agency Pension Scheme
Ministry of Justice,MoJ HQ,27/Feb/2014 ,265000-IT & Telecommunications,NZ900-Finance & Corporate Services,LEVEL 3 COMMUNICATIONS (UK) LTD,1124440,"23,850.00",Global Crossing - DISC to Mint Connectivity  &  Video Links
Ministry of Justice,MoJ HQ,27/Feb/2014 ,265000-IT & Telecommunications,NZ900-Finance & Corporate Services,LEVEL 3 COMMUNICATIONS (UK) LTD,1124440,"4,770.00",Global Crossing - DISC to Mint Connectivity  &  Video Links
Ministry of Justice,MoJ HQ,17/Feb/2014 ,262000-SCA Costs,NX900-MOJ Shared Services,LIBERATA UK LTD,1123620,"1,227,956.06",Aramis Charges for 2013-14: to be reconciled and agreed Monthly
Ministry of Justice,MoJ HQ,20/Feb/2014 ,512000-Intangible GBV - Additions,NX900-MOJ Shared Services,LIBERATA UK LTD,1123930,"36,766.09",Shared Services Programme Merge development activity
Ministry of Justice,MoJ HQ,17/Feb/2014 ,262000-SCA Costs,NX900-MOJ Shared Services,LIBERATA UK LTD,1123619,"251,188.82",Monthly provision of payroll services FY13-14
Ministry of Justice,MoJ HQ,06/Feb/2014 ,265000-IT & Telecommunications,NZ900-Finance & Corporate Services,LIBERATA UK LTD,1122742,"23,630.47",ICT Printing - Liberata Print Charges
Ministry of Justice,MoJ HQ,06/Feb/2014 ,265000-IT & Telecommunications,NZ900-Finance & Corporate Services,LIBERATA UK LTD,1122742,"4,726.09",ICT Printing - Liberata Print Charges
Ministry of Justice,MoJ HQ,06/Feb/2014 ,265000-IT & Telecommunications,NZ900-Finance & Corporate Services,LIBERATA UK LTD,1122742,0.01,N/A
Ministry of Justice,MoJ HQ,06/Feb/2014 ,265000-IT & Telecommunications,NZ900-Finance & Corporate Services,LIBERATA UK LTD,1122742,"88,639.09",ICT Printing - Liberata Print Charges
Ministry of Justice,MoJ HQ,27/Feb/2014 ,222001-Maintenance,NZ406-Strategic Estates Feeder,M J FERGUSON LTD,1124449,753.17,30 Millbank: Project and Programme Management costs for 2013-14.
Ministry of Justice,MoJ HQ,27/Feb/2014 ,222001-Maintenance,NZ406-Strategic Estates Feeder,M J FERGUSON LTD,1124449,"10,706.73",Steel House: Project and Programme Management  costs for 2013-14.
Ministry of Justice,MoJ HQ,27/Feb/2014 ,222001-Maintenance,NZ406-Strategic Estates Feeder,M J FERGUSON LTD,1124449,"31,117.02",Clive House: Project and Programme Management  costs for 2013-14.
Ministry of Justice,MoJ HQ,27/Feb/2014 ,222001-Maintenance,NZ406-Strategic Estates Feeder,M J FERGUSON LTD,1124449,"16,934.97",Measured Term Contract costs for 2013-14.
Ministry of Justice,MoJ HQ,27/Feb/2014 ,222001-Maintenance,NZ406-Strategic Estates Feeder,M J FERGUSON LTD,1124449,"186,649.01",102 Petty France: Project and Programme Management  costs for 2013-14.
Ministry of Justice,MoJ HQ,20/Feb/2014 ,263000-Other Contracted Out Services,RC999-Criminal Justice Group - OMS,MEDOMSLEY TRAINING SERVICES LTD,1123949,"708,776.56",Supplier is contracted to run a secure training centre which forms part of the juvenile secure estate. 
Ministry of Justice,MoJ HQ,27/Feb/2014 ,226000-Court Costs,RG999-CFLAP Accumulator,MERRILL CORPORATION LTD,1124464,"48,793.75",Transcription fees for the Hillsborough Inquests hearings
Ministry of Justice,MoJ HQ,10/Feb/2014 ,264000-Consultancy,NZ900-Finance & Corporate Services,METHODS CONSULTING,24231,"88,833.33",To provide a managed service for the provision of the specialist architecture and service design capability.
Ministry of Justice,MoJ HQ,10/Feb/2014 ,264000-Consultancy,NZ900-Finance & Corporate Services,METHODS CONSULTING,24231,"17,766.67",To provide a managed service for the provision of the specialist architecture and service design capability.
Ministry of Justice,MoJ HQ,27/Feb/2014 ,222003-CIS Labour TFM Estates,QY200-OU10 Billback,MITIE JUSTICE LTD,1124470,"43,876.35",Total Facilities Management Soft Services FIXED Costs April 2013 to March 2014: MOJ HQ MITIE INTERNAL MOVES
Ministry of Justice,MoJ HQ,27/Feb/2014 ,222003-CIS Labour TFM Estates,QY200-OU10 Billback,MITIE JUSTICE LTD,1124470,"86,507.40",Total Facilities Management Soft Services FIXED Costs April 2013 to March 2014: MOJ HQ MITIE INTERNAL MOVES
Ministry of Justice,MoJ HQ,27/Feb/2014 ,222003-CIS Labour TFM Estates,QY200-OU10 Billback,MITIE JUSTICE LTD,1124470,"141,940.74",Total Facilities Management Soft Services FIXED Costs April 2013 to March 2014: MOJ HQ MITIE SECURITY
Ministry of Justice,MoJ HQ,27/Feb/2014 ,222003-CIS Labour TFM Estates,QY200-OU10 Billback,MITIE JUSTICE LTD,1124470,"54,488.96",Total Facilities Management SOFT SERVICES VARIABLE COSTS APRIL 2012 TO MARCH 2013: MOJ HQ MITIE INTERNAL MOVES
Ministry of Justice,MoJ HQ,24/Feb/2014 ,212001-Agency staff,LZ600-Transforming Justice,MR RICHARD AITKEN-DAVIES,1124212,"26,284.85",Advise Minister and Senior Officials and work with teams on the Transforming Justice Programme
Ministry of Justice,MoJ HQ,10/Feb/2014 ,710200-Creditors < 1 year - Trade & Other Creditors,WW000-Balance Sheet,NATIONAL OFFENDERS MANAGEMENT SERVICE (NOMS),4116,"346,670.29","Balance sheet payments to CFERS (Consolidated Fund Extra Receipts), which refers to income received by the Department but must be returned to the consolidated fund in the estimate"
Ministry of Justice,MoJ HQ,21/Feb/2014 ,263000-Other Contracted Out Services,QZ500-Arms Length Bodies (CPG),NATIONAL SAVINGS & INVESTMENTS,4173,"548,674.75",Provision of Court Funds Office service for the 2012/13 Financial Year
Ministry of Justice,MoJ HQ,21/Feb/2014 ,263000-Other Contracted Out Services,QZ500-Arms Length Bodies (CPG),NATIONAL SAVINGS & INVESTMENTS,4174,"95,431.00",NSI Financing Charge for Development costs
Ministry of Justice,MoJ HQ,24/Feb/2014 ,263000-Other Contracted Out Services,QZ500-Arms Length Bodies (CPG),NATIONAL SAVINGS & INVESTMENTS,4179,"1,108,022.00",Provision of Court Funds Office service for the 2012/13 Financial Year
Ministry of Justice,MoJ HQ,13/Feb/2014 ,512000-Intangible GBV - Additions,NZ900-Finance & Corporate Services,ORACLE CORPORATION UK LTD,1123347,"21,667.64",IT Licences
Ministry of Justice,MoJ HQ,13/Feb/2014 ,265000-IT & Telecommunications,NZ900-Finance & Corporate Services,ORANGE (EVERYTHING EVERYWHERE LTD),1123349,"21,801.24",Mobile telephony service provided to the National Offenders Management Service (NOMS) Estate
Ministry of Justice,MoJ HQ,13/Feb/2014 ,265000-IT & Telecommunications,NZ900-Finance & Corporate Services,ORANGE (EVERYTHING EVERYWHERE LTD),1123349,"4,360.25",Mobile telephony service provided to the National Offenders Management Service (NOMS) Estate
Ministry of Justice,MoJ HQ,13/Feb/2014 ,265000-IT & Telecommunications,NZ900-Finance & Corporate Services,ORANGE (EVERYTHING EVERYWHERE LTD),1123349,698.98,Mobile telephony service provided to the National Offenders Management Service (NOMS) Estate
Ministry of Justice,MoJ HQ,13/Feb/2014 ,265000-IT & Telecommunications,NZ900-Finance & Corporate Services,ORANGE (EVERYTHING EVERYWHERE LTD),1123349,-0.03,N/A
Ministry of Justice,MoJ HQ,24/Feb/2014 ,264000-Consultancy,LZ600-Transforming Justice,PA CONSULTING GROUP,1124223,"477,438.52",To  Provide Rehabilitation Programme with HR People Transition Support
Ministry of Justice,MoJ HQ,24/Feb/2014 ,264000-Consultancy,LZ600-Transforming Justice,PA CONSULTING GROUP,1124223,"97,328.70",Transitions Managers to provide Rehabilitation Programme with support to deliver the transition from 35 Probation Trusts to a single public sector probation service and 21 Community Rehabilitation Companies by October 2014.
Ministry of Justice,MoJ HQ,13/Feb/2014 ,246000-Current Grants,RB999-JPG - CJRD,PCC FOR HERTFORDSHIRE#RB31110405,1123340,"415,169.00",Payment to Police & Crime Commissioner of 2013/14 budget
Ministry of Justice,MoJ HQ,11/Feb/2014 ,246000-Current Grants,RB999-JPG - CJRD,PCC FOR LEICESTERSHIRE#RB31110402,1123091,"377,010.00",Payment to Police & Crime Commissioner of 2013/14 budget
Ministry of Justice,MoJ HQ,11/Feb/2014 ,246000-Current Grants,RB999-JPG - CJRD,PCC FOR NORFOLK#RB31110400,1123089,"318,172.00",Payment to Police & Crime Commissioner of 2013/14 budget
Ministry of Justice,MoJ HQ,11/Feb/2014 ,246000-Current Grants,RB999-JPG - CJRD,PCC FOR NORTH YORKSHIRE#RB31110403,1123092,"295,133.00",Payment to Police & Crime Commissioner of 2013/14 budget
Ministry of Justice,MoJ HQ,11/Feb/2014 ,246000-Current Grants,RB999-JPG - CJRD,PCC FOR NORTHUMBRIA#RB31110401,1123090,"523,726.00",Payment to Police & Crime Commissioner of 2013/14 budget
Ministry of Justice,MoJ HQ,11/Feb/2014 ,246000-Current Grants,RB999-JPG - CJRD,PCC FOR SOUTH YORKSHIRE#RB31110404,1123093,"497,184.00",Payment to Police & Crime Commissioner of 2013/14 budget
Ministry of Justice,MoJ HQ,17/Feb/2014 ,264000-Consultancy,RC999-Criminal Justice Group - OMS,PINSENT MASONS LLP,1123672,"30,279.00",Legal Consultancy for Transforming Youth Custody programme
Ministry of Justice,MoJ HQ,17/Feb/2014 ,264000-Consultancy,RC999-Criminal Justice Group - OMS,PINSENT MASONS LLP,1123672,"6,055.80",Legal Consultancy for Transforming Youth Custody programme
Ministry of Justice,MoJ HQ,24/Feb/2014 ,246000-Current Grants,RG999-CFLAP Accumulator,REUNITE INTERNATIONAL,1124235,"28,125.00","Grant to Reunite International Child Abduction Centre. Quarterly funding for the 24/7 operation of its advice line which deals with queries on the prevention of international parental child abduction, contact and relocation"
Ministry of Justice,MoJ HQ,24/Feb/2014 ,246000-Current Grants,RG999-CFLAP Accumulator,REUNITE INTERNATIONAL,1124235,"28,125.00","Grant to Reunite International Child Abduction Centre. Quarterly funding for the 24/7 operation of its advice line which deals with queries on the prevention of international parental child abduction, contact and relocation"
Ministry of Justice,MoJ HQ,24/Feb/2014 ,265000-IT & Telecommunications,NZ900-Finance & Corporate Services,SALFORD SOFTWARE LTD,1124243,"27,579.00",Support to the Future IT Systems End User Computing - creation of a High Level Design to support the contract
Ministry of Justice,MoJ HQ,24/Feb/2014 ,265000-IT & Telecommunications,NZ900-Finance & Corporate Services,SALFORD SOFTWARE LTD,1124243,"5,515.80",Support to the Future IT Systems End User Computing - creation of a High Level Design to support the contract
Ministry of Justice,MoJ HQ,20/Feb/2014 ,263000-Other Contracted Out Services,LZ600-Transforming Justice,STAFFORDSHIRE COUNTY COUNCIL,24306,"433,281.07",Staffordshire Council County continue to provide the Claims Management Regulation Compliance Office under contract to the MOJ.
Ministry of Justice,MoJ HQ,20/Feb/2014 ,263000-Other Contracted Out Services,LZ600-Transforming Justice,STAFFORDSHIRE COUNTY COUNCIL,24306,"86,656.21",Staffordshire Council County continue to provide the Claims Management Regulation Compliance Office under contract to the MOJ.
Ministry of Justice,MoJ HQ,06/Feb/2014 ,265000-IT & Telecommunications,NX900-MOJ Shared Services,STERIA LTD,1122838,"168,680.00",IT Changes
Ministry of Justice,MoJ HQ,27/Feb/2014 ,265000-IT & Telecommunications,NZ900-Finance & Corporate Services,STERIA LTD,1124539,"833,589.89",Computer Desktop Services
Ministry of Justice,MoJ HQ,27/Feb/2014 ,265000-IT & Telecommunications,NZ900-Finance & Corporate Services,STERIA LTD,1124539,"790,219.31",STERIA Offender management Network Services
Ministry of Justice,MoJ HQ,27/Feb/2014 ,265000-IT & Telecommunications,NZ900-Finance & Corporate Services,STERIA LTD,1124539,"119,429.23",STERIA Offender management Network Services
Ministry of Justice,MoJ HQ,27/Feb/2014 ,265000-IT & Telecommunications,NZ900-Finance & Corporate Services,STERIA LTD,1124539,"62,411.71",Computer Services
Ministry of Justice,MoJ HQ,27/Feb/2014 ,265000-IT & Telecommunications,NZ900-Finance & Corporate Services,STERIA LTD,1124539,"828,068.35",IT Hosting Services
Ministry of Justice,MoJ HQ,27/Feb/2014 ,265000-IT & Telecommunications,NZ900-Finance & Corporate Services,STERIA LTD,1124539,"279,129.09",IT Application & Maintenance Services
Ministry of Justice,MoJ HQ,27/Feb/2014 ,265000-IT & Telecommunications,NZ900-Finance & Corporate Services,STERIA LTD,1124539,"150,002.32",STERIA Offender management Network - Telephony
Ministry of Justice,MoJ HQ,27/Feb/2014 ,265000-IT & Telecommunications,NZ900-Finance & Corporate Services,STERIA LTD,1124539,"30,000.46",STERIA Offender management Network - Telephony
Ministry of Justice,MoJ HQ,27/Feb/2014 ,265000-IT & Telecommunications,NZ900-Finance & Corporate Services,STERIA LTD,1124539,"138,558.08",STERIA Offender management general IT costs
Ministry of Justice,MoJ HQ,27/Feb/2014 ,265000-IT & Telecommunications,NZ900-Finance & Corporate Services,STERIA LTD,1124539,"24,635.08",STERIA Offender management general IT costs
Ministry of Justice,MoJ HQ,03/Feb/2014 ,265000-IT & Telecommunications,NZ900-Finance & Corporate Services,STERIA LTD,1122503,"237,941.00",Extension of the Applications maintenance and support contract 01/08/13 - 31/07/14
Ministry of Justice,MoJ HQ,03/Feb/2014 ,512000-Intangible GBV - Additions,NZ900-Finance & Corporate Services,STERIA LTD,1122503,"43,600.82", upgrade IBM products and bring them into mainstream support
Ministry of Justice,MoJ HQ,06/Feb/2014 ,532000-Tangible GBV - Additions,NZ900-Finance & Corporate Services,STERIA LTD,1122838,"29,517.91", Printing Requirement
Ministry of Justice,MoJ HQ,20/Feb/2014 ,512000-Intangible GBV - Additions,NZ900-Finance & Corporate Services,STERIA LTD,1124016,"22,270.60",Computer Services
Ministry of Justice,MoJ HQ,27/Feb/2014 ,512000-Intangible GBV - Additions,NZ900-Finance & Corporate Services,STERIA LTD,1124539,"22,804.68",Computer Services
Ministry of Justice,MoJ HQ,03/Feb/2014 ,512000-Intangible GBV - Additions,NZ900-Finance & Corporate Services,STERIA LTD,1122503,"105,792.00", Post-migration data changes
Ministry of Justice,MoJ HQ,27/Feb/2014 ,512000-Intangible GBV - Additions,NZ900-Finance & Corporate Services,STERIA LTD,1124539,"88,712.50",Computer Services
Ministry of Justice,MoJ HQ,13/Feb/2014 ,265000-IT & Telecommunications,NZ900-Finance & Corporate Services,STERIA LTD,1123409,"21,560.45",Monthly Support Costs Annual Payment
Ministry of Justice,MoJ HQ,13/Feb/2014 ,265000-IT & Telecommunications,NZ900-Finance & Corporate Services,STERIA LTD,1123409,"4,312.09",Monthly Support Costs Annual Payment
Ministry of Justice,MoJ HQ,27/Feb/2014 ,265000-IT & Telecommunications,LZ600-Transforming Justice,STERIA LTD,1124539,"52,059.00",NOMS 291 Rehabilitation Programme Implementation Charges NDelius Changes (RFS120175-V1.13)
Ministry of Justice,MoJ HQ,03/Feb/2014 ,265000-IT & Telecommunications,LZ600-Transforming Justice,STERIA LTD,1122503,"56,019.14",Rehabilitation Programme - ICT Transition/Change Service (RFS122126) 
Ministry of Justice,MoJ HQ,27/Feb/2014 ,265000-IT & Telecommunications,LZ600-Transforming Justice,STERIA LTD,1124539,"89,753.19",Rehabilitation Programme - ICT Transition/Change Service (RFS122126)
Ministry of Justice,MoJ HQ,03/Feb/2014 ,245000-Grants in Aid to NDPBs,KY340-Access to Justice Delivery,THE PAROLE BOARD#KY14820015,4074,"750,000.00",Grant-in-Aid Payment
Ministry of Justice,MoJ HQ,10/Feb/2014 ,262000-SCA Costs,QZ500-Arms Length Bodies (CPG),TNT UK LTD,1123070,"31,386.74",Re-indexing of OAG pro-box files as part of Government Records Management Contract Special Project (SP)
Ministry of Justice,MoJ HQ,20/Feb/2014 ,223000-Other Expenditure,LZ600-Transforming Justice,TNT UK LTD,1124037,"61,830.96",Monthly 'storage' and 'activity' costs for paper records stored by TNT on MoJ's behalf at its secure repositories.
Ministry of Justice,MoJ HQ,27/Feb/2014 ,265000-IT & Telecommunications,NZ900-Finance & Corporate Services,TRUSTMARQUE SOLUTIONS LTD,1124568,"45,388.83",Server CPU Dual-Core License 18.02.2014-17.02.2015
Ministry of Justice,MoJ HQ,27/Feb/2014 ,265000-IT & Telecommunications,NZ900-Finance & Corporate Services,TRUSTMARQUE SOLUTIONS LTD,1124568,"9,077.77",Server CPU Dual-Core License 18.02.2014-17.02.2015
Ministry of Justice,MoJ HQ,03/Feb/2014 ,265000-IT & Telecommunications,NZ900-Finance & Corporate Services,VODAFONE LTD FORMERLY CABLE & WIRELESS UK,1122535,"171,782.14",Equal and opposite entry exists to cancel
Ministry of Justice,MoJ HQ,03/Feb/2014 ,265000-IT & Telecommunications,NZ900-Finance & Corporate Services,VODAFONE LTD FORMERLY CABLE & WIRELESS UK,1122535,"-171,782.14",Equal and opposite entry exists to cancel
Ministry of Justice,MoJ HQ,03/Feb/2014 ,265000-IT & Telecommunications,NZ900-Finance & Corporate Services,VODAFONE LTD FORMERLY CABLE & WIRELESS UK,1122535,"585,910.69",IT Network Services
Ministry of Justice,MoJ HQ,03/Feb/2014 ,265000-IT & Telecommunications,NZ900-Finance & Corporate Services,VODAFONE LTD FORMERLY CABLE & WIRELESS UK,1122535,"117,182.14",IT Network Services
Ministry of Justice,MoJ HQ,03/Feb/2014 ,265000-IT & Telecommunications,NZ900-Finance & Corporate Services,VODAFONE LTD FORMERLY CABLE & WIRELESS UK,1122535,"104,719.50",IT Network Services
Ministry of Justice,MoJ HQ,03/Feb/2014 ,265000-IT & Telecommunications,NZ900-Finance & Corporate Services,VODAFONE LTD FORMERLY CABLE & WIRELESS UK,1122535,"20,943.90",IT Network Services
Ministry of Justice,MoJ HQ,03/Feb/2014 ,265000-IT & Telecommunications,NZ900-Finance & Corporate Services,VODAFONE LTD FORMERLY CABLE & WIRELESS UK,1122535,"199,442.85",Criminal Justice Secure email Yearly costs
Ministry of Justice,MoJ HQ,03/Feb/2014 ,265000-IT & Telecommunications,NZ900-Finance & Corporate Services,VODAFONE LTD FORMERLY CABLE & WIRELESS UK,1122535,"39,888.57",Criminal Justice Secure email Yearly costs
Ministry of Justice,MoJ HQ,03/Feb/2014 ,265000-IT & Telecommunications,NZ900-Finance & Corporate Services,VODAFONE LTD FORMERLY CABLE & WIRELESS UK,1122535,"42,522.53",Criminal Justice Secure email Yearly costs
Ministry of Justice,MoJ HQ,03/Feb/2014 ,265000-IT & Telecommunications,NZ900-Finance & Corporate Services,VODAFONE LTD FORMERLY CABLE & WIRELESS UK,1122535,"8,504.51",Criminal Justice Secure email Yearly costs
Ministry of Justice,MoJ HQ,03/Feb/2014 ,245000-Grants in Aid to NDPBs,RC999-Criminal Justice Group - OMS,YOUTH JUSTICE BOARD FOR ENGLAND & WALES,4077,"30,000,000.00",Grant-in-Aid Payment
